Workbook

Sheet Cover Page
N2: Version 24.2a (for incinerators) - 27/11/24
N4: Note that there is another version of this template available for co-incinerators
N13: Notes:
N14: This template may require adjustments by individual operators to meet specific reporting requirements as defined in the site Permit(s)
B29: Annual Performance Report 2024
B31: Permit EPR/BJ7093IY
B33: Integra SouthWest Energy Recovery Facility
B35: Marchwood
B37: Veolia
B39: Year: | C39: 2024
B41: Address: | C41: Oceanic Way, Marchwood Industrial Park,Hampshire SO40 4BD
B43: Tel:
B45: Email:
B47: Prepared by: | C47: M Fumagall | F47: Position: | G47: Environmetal Technician
B49: Approved by: | C49: Sean Speirs | F49: Position: | G49: Facility Manager
B51: Version: | C51: 1
B53: Issue Date: | C53: 1st January 2024

Sheet Contents
A1: =+'Cover Page'!$B$29 -> Annual Performance Report 2024 | E1: =+'Cover Page'!$B$33 -> Integra SouthWest Energy Recovery Facility
A3: Contents | K3: Notes:
A4: Section | B4: Subject | H4: Page | K4: Section references and Page nos. to be inserted
B5: Facility Information | K5: Sections and Subjects may require adjustment by individual operators to meet specific reporting requirements as defined in the sites Permit(s)
B6: Operational Data
B7: Operational Summary
B8: Performance Form 1
B9: Energy Form 1
B10: Permit Compliance
B11: Improvements
B12: Public Liaison
B13: Carbon dioxide and nitrous oxide emissions
B14: Residue Quality
B15: Emissions to Water
B16: Emissions to Air (periodically monitored)
B17: Emissions to Air (continuously monitored)
B18: Hydrogen Chloride emissions
B19: Sulphur Dioxide emissions
B20: Oxides of Nitrogen emissions
B21: Total Organic Carbon emissions
B22: Particulate Matter emissions
B23: Carbon Monoxide emissions
B24: Ammonia emissions
A27: Version Control
A28: Section | B28: Information | H28: Date
A35: Distribution
A36: Copy | B36: Name, Role | H36: No.
A45: This report is required under the Industrial Emissions Directive’s Article 55(2) requirements on reporting and public information on waste incineration plants and co-incineration plants, which require the operator to produce an annual report on the functioning and monitoring of the plant and make it available to the public.

Sheet Facility Info
A1: =+'Cover Page'!$B$29 -> Annual Performance Report 2024 | E1: =+'Cover Page'!$B$33 -> Integra SouthWest Energy Recovery Facility
A3: Plant Description and Design | K3: Notes:
A5: Marchwood ERF was the second of its kind to be built in Hampshire and is a leading example of best environmental practice for waste treatment. Waste produced by Southampton City and South West Hampshire Districts is processed at this ERF, providing a long term, sustainable solution for waste recovery. It recovers heat energy from the waste to produce steam, which is used to generate electricity supplied to the National Grid. Strict environmental controls and proven operating experience ensure the Marchwood ERF is a centre of excellence and a benchmark for the industry. Technical details of the plant: Maximum Permitted Refuse throughput – 220,000 tonnes per annum, with approximately 13 tonnes per hour burning capacity per stream Storage capacity – four days full plant capacity Number of tipping bays – 10 Steam output – 76 tonnes of steam per hour at 400*C and 45 bar Flue gas treatment – CNIM semi-dry lime scrubber followed by high performance bag filters, discharging into a 65 metre high chimney Energy produced – maximum generating capacity 17MW | K5: Include summary of plant design, design capacity, no. of combustion lines, electrical and heat capacity and any other general information that describes the facility, its location and purpose
A20: Summary of Operational Processes and Procedures
A22: The Marchwood ERF forms part of Veolia’s Integrated Contracts, the most progressive integrated waste management system in Britain which provides sustainable waste management for all the domestic waste in the county. The ERF is regulated by the Environment Agency and is certified in compliance with: ISO 9001 : 2008 ISO 14001 : 2004, OHAS 18001 : 2007, and ISO 25999 Solid Residue Outputs | K22: Include summary of key processes and procedures such as (but not limited to); waste reception, control rooms, grate, bed and boiler, energy & heat generation, cooling systems, residue management, emission controls, health and safety systems, maintenance

Sheet Operational Data
A1: =+'Cover Page'!$B$29 -> Annual Performance Report 2024 | E1: =+'Cover Page'!$B$33 -> Integra SouthWest Energy Recovery Facility
A3: Operational Data
A4: Plant Size | D4: tonnes pa | F4: MWth | H4: MWe | J4: Notes:
A5: No. of combustion lines | B5: 2 | D5: No. of Turbines: | F5: 1 | J5: * - RDF to include SRF
J6: ** - Combusted tonnage = tonnes delivered in period + (tonnes in bunker at start of period – tonnes in bunker at end of period), or equivalent calculation depending on plant type
A7: Waste types received | B7: Unit | C7: Q1 | D7: Q2 | E7: Q3 | F7: Q4 | G7: Year Total | H7: %
A8: Household / Local Authority | B8: tonnes | C8: 46592 | D8: 41613 | E8: 46129 | F8: 43988 | G8: =SUM(C8:F8) -> 178322 | H8: =IF(G8>0,G8/$G$18,"-") -> 0.8668290057
A9: Commercial & Industrial | C9: 6786 | D9: 5383 | E9: 6807 | F9: 7776 | G9: 26752 | H9: 0.1300423367 | J9: *** - CHP plants only
A10: Hazardous | J10: **** Availability Definition: 'the availability of a line is to be calculated by the number of hours the line reported Continuously Monitored emission levels to the Regulator through the calendar year divided by the total number of hours in that year. The overall plant availability is calculated as the Mean of all lines in the plant. For clarity this includes periods of abnormal operation.' Rationale: The primary function of an Energy from Waste facility is the disposal of waste. It follows therefore that the availability of a plant is determined by the period of time a facility spends undertaking this activity.
A11: Clinical | C11: 84 | D11: 84 | E11: 93 | F11: 99 | G11: =SUM(C11:F11) -> 360 | H11: =IF(G11>0,G11/$G$18,"-") -> 0.001749971636
A12: Waste wood (biomass)
A13: Refuse Derived Fuel * - H'hold/LA
A14: Refuse Derived Fuel * - C&I SRF | G14: =SUM(C14:F14) -> 0
A15: SRF | C15: 0 | D15: 11 | E15: 64.62 | F15: 208 | G15: 283.62 | H15: =IF(G15>0,G15/$G$18,"-") -> 0.001378685987
A16: Other [Please specify]
A17: Other [Please specify]
A18: Total waste received | C18: =SUM(C8:C17) -> 53462 | D18: 47091 | E18: 53093.62 | F18: 52071 | G18: =SUM(C18:F18) -> 205717.62
A19: Rejected Waste
A20: Unprocessed waste transferred out
A21: Total waste combusted ** | C21: 54262 | D21: 45130 | E21: 52962 | F21: 53676 | G21: =SUM(C21:F21) -> 206030 | H21: =IF(G21>0,G21/$G$18,"-") -> 1.001518489
J22: Password for protected cells A password has been set to prevent accidental editing of cells with formulae. If you still need to make an edit for some reason then the password = 1234
A23: Energy Usage / Export | B23: Unit | C23: Q1 | D23: Q2 | E23: Q3 | F23: Q4 | G23: Year Total | H23: KWh/te
A24: Power Generated | B24: MWh | C24: 34698.39 | D24: 26980.61 | E24: 32784.5 | F24: 32211.35 | G24: =SUM(C24:F24) -> 126674.85 | H24: =IF(G24>0,G24*1000/$G$21,"-") -> 614.836917
A25: Power Exported | C25: 30675.7 | D25: 24859.8 | E25: 29818.2 | F25: 29620.3 | G25: 114974 | H25: 558.0449449
A26: Power Used on site | C26: =C24-C25+C27 -> 4022.69 | D26: 2270.01 | E26: 2979.1 | F26: 2612.65 | G26: 11884.45 | H26: 57.6831044
A27: Power Imported | C27: 0 | D27: 149.2 | E27: 12.8 | F27: 21.6 | G27: 183.6 | H27: 0.8911323594
A28: Parasitic Load | B28: % | C28: =IF(C24>0,1-C25/(C24+C27),"-") -> 0.1159330447 | D28: 0.08367216726 | E28: 0.09083369668 | F28: 0.08105525557 | G28: 0.09368276217 | H28: =IF(G27>0,G27*1000/$G$21,"-") -> 0.8911323594
A29: Thermal Energy Produced *** | B29: MWh | G29: =SUM(C29:F29) -> 0 | H29: =IF(G29>0,G29*1000/$G$21,"-") -> -
A30: Thermal Energy Exported *** | G30: 0 | H30: -
A31: R1 value (if applicable) | B31: R1
A33: Waste Disposal & Recovery | B33: Unit | C33: Q1 | D33: Q2 | E33: Q3 | F33: Q4 | G33: Year Total | H33: % inputs
A34: APC Residues - produced | B34: tonnes | C34: 1417.73 | D34: 1222.16 | E34: 1373.54 | F34: 1509.68 | G34: =SUM(C34:F34) -> 5523.11 | H34: =IF(G34>0,G34/$G$21,"-") -> 0.02680730962
A35: IBA - produced | C35: 8730.24 | D35: 7465.16 | E35: 8853.72 | F35: 8999.12 | G35: 34048.24 | H35: 0.1652586517
A36: Metals recycling | C36: 814.96 | D36: 616.24 | E36: 741.04 | F36: 697.98 | G36: 2870.22 | H36: 0.013931078
A37: Other
A38: Other
A39: Other
A41: Raw Material Usage | B41: Unit | C41: Q1 | D41: Q2 | E41: Q3 | F41: Q4 | G41: Year Total | H41: kg or Ltr /te
A42: Mains Water | B42: ltrs | C42: =14383*1000 -> 14383000 | D42: =12411*1000 -> 12411000 | E42: =14080*1000 -> 14080000 | F42: =16806*1000 -> 16806000 | G42: =SUM(C42:F42) -> 57680000 | H42: =IF(G42>0,G42/$G$21,"-") -> 279.9592292
A43: Other Water | B43: ltrs
A44: Ammonia | B44: kgs
A45: Urea | B45: kgs | C45: =81*1000 -> 81000 | D45: =62*1000 -> 62000 | E45: =85*1000 -> 85000 | F45: =78*1000 -> 78000 | G45: =SUM(C45:F45) -> 306000 | H45: =IF(G45>0,G45/$G$21,"-") -> 1.485220599
A46: Activated Carbon | B46: kgs | C46: =15*1000 -> 15000 | D46: =24.5*1000 -> 24500 | E46: =22*1000 -> 22000 | F46: =34*1000 -> 34000 | G46: 95500 | H46: 0.4635247294
A47: Lime / hydrated lime | B47: kgs | C47: =345*1000 -> 345000 | D47: =385.63*1000 -> 385630 | E47: =397.73*1000 -> 397730 | F47: =486.9*1000 -> 486900 | G47: 1615260 | H47: 7.839926224
A48: Fuel oil | B48: ltrs | C48: 27785 | D48: 58650 | E48: 36674 | F48: 52517 | G48: 175626 | H48: 0.8524292579
A49: Gas | B49: cuf
A50: Other
A52: Summary | B52: Line/Unit | C52: Q1 | D52: Q2 | E52: Q3 | F52: Q4 | G52: Year Total | I52: Hrs in year
A53: Availability of waste combustion by line, hrs **** | B53: 1 | C53: 2173 | D53: 1851 | E53: 2178 | F53: 2141 | G53: =SUM(C53:F53) -> 8343 | H53: =+G53/$I$53 -> 0.949795082 | I53: 8784
B54: 2 | C54: 2182 | D54: 1828 | E54: 2198 | F54: 2202 | G54: 8410 | H54: 0.9574225865
B55: 3 | G55: 0 | H55: 0
B56: 4 | G56: 0 | H56: 0
B57: 5 | G57: 0 | H57: 0
A58: Overall Availability, mean avg. of all lines, hrs | G58: =AVERAGE(G53:G54) -> 8376.5 | H58: 0.9536088342
A59: Hours of turbine operations, hrs | B59: 1 | C59: 2183 | D59: 1958 | E59: 2197 | F59: 2196 | G59: =SUM(C59:F59) -> 8534 | H59: 0.9715391621
A60: Hours of turbine operations, hrs | B60: 2 | G60: 0 | H60: 0
A61: Hours of heat / steam export | G61: 0 | H61: =IF(B61>0,G60/I53,"n/a") -> n/a
A62: Net Calorific Value of waste | B62: MJ/kg | C62: 8.85 | D62: 8.889 | E62: 9.023 | F62: 8.927 | G62: =AVERAGE(C62:F62) -> 8.92225
A63: Abnormal Events | B63: qty. | G63: =SUM(C63:F63) -> 0 | H63: =IF(G63>0,"yes","no") -> no
A64: Abnormal operation | B64: hours | G64: 0 | H64: =+(G64)/I53 -> 0
A65: Permit Breaches | B65: qty. | C65: 1 | G65: 1 | H65: Yes

Sheet Operational Summary
A1: =+'Cover Page'!$B$29 -> Annual Performance Report 2024 | E1: =+'Cover Page'!$B$33 -> Integra SouthWest Energy Recovery Facility
A3: Summary of Plant Operations and Maintenance during the reporting year | K3: Notes:
A5: Outer economiser tube bundle completely renewed during 2024 planned outage. Planned preventative maintenance was conducted in accordance with the life-cycle schedule of the Facility. | K5: Include summary of key operational and/or maintenance activity undertaken in the year, such as any major component upgrades and/or replacements
A29: Summary of Residue Handling for the reporting year
A31: The Incinerator Bottom Ash (IBA) is transported by Veolia Haulage to an aggregate processing facility situated in Longparish, Hampshire. The IBA is reprocessed into a number of different graded aggregates, ferrous and non ferrous metal products, which are then utilised in the construction and metal industry. Ferrous metals removed during on site processing of IBA are forwarded to a recycling facility. The metals are separated into individual fractions, and are sent on for utilisation in the metal industry. The fine particulate matter, known as Air Pollution Control Residue (APCr), is removed from the process by a fabric filter. The APCr is sent to Empire, another Veolia site located in Aldridge, West Midlands where it is used to neutralise spent acid wastes before final disposal. All wastes generated by the activities is treated in accordance with the waste hierarchy referred to in Article 4 of the Waste Framework Directive. All avenues for waste processing are continuously monitored and reviewed, any opportunities to improve on the current methods would be implemented at the earliest opportunity | K31: Include in here a summary of residue handling regimes and destinations
A54: =+'Cover Page'!C39 -> 2024 | B54: Plant shut-downs
A55: Date | B55: Reason for shut-down | K55: Provide a very brief reason for plant shut-down e.g. "Shut-down prior to major outage"; "Emergency shut-down due to boiler tube leak" There is no need to include periods of hot-standby here (e.g. to clear feed chute hopper blockages). For clinical waste incinerators which require regular shut-downs for boiler cleaning, there is no need to record these here.
A56: 7th February | B56: Controlled shutdown in order to clear riddling hopper blockage - Line 1
A57: 16th February | B57: Controlled shutdown in order to clear ash discharger blockage - Line 1
A58: 14th April - 4th May 2024 | B58: Shut-down for 2024 planned outage, next due in 2026
A59: 18th July | B59: Both boilers taken out of service following a turbine trip
A60: 10th August | B60: Initiated shutdown due to pipework blockage - Line 1
A61: 24th - 25th September | B61: Controlled shutdown in order to clear ash discharger blockage - Line 1
A62: 3rd-4th October | B62: Both boilers taken out of service due to a crane issue
A63: 14th November | B63: Controlled shutdown in order to clear ash discharger blockage - Line 1
A64: 17th November | B64: B1 Shutdown for grate repair
A65: 20th Nov- 22nd Nov | B65: B1 Shutdown for grate repair
A66: 25th December | B66: Boiler 1 offline due to mechanical issues affecting the crane

Sheet Perf. Form 1
A1: =+'Cover Page'!C39 -> 2024 | B1: Annual Reporting Performance Form 1
A3: =+'Cover Page'!B31 -> Permit EPR/BJ7093IY | F3: Operator: | G3: =+'Cover Page'!B37 -> Veolia
A4: Facility: | B4: =+'Cover Page'!B33:I33 -> Integra SouthWest Energy Recovery Facility | F4: Form: | G4: Performance 1
A6: Reporting Period from: | D6: 01.10.2024 | F6: to: | G6: 31.12.2024
A8: =+A1 -> 2024 | B8: Annual Reporting of Waste Disposal and Recovery
A9: Waste Description | C9: Disposal Route(s) | E9: Disposal Tonnes | G9: Recovery Tonnes | I9: % / tonne of waste incinerated
A10: 1) Hazardous Wastes
A11: APC Residues | C11: D9 | E11: 5523 | I11: =IF((E11+G11)>0,(E11+G11)/'Operational Data'!$G$21, "-") -> 0.02680677571
A12: IBA | I12: =IF((E12+G12)>0,(E12+G12)/'Operational Data'!$G$21, "-") -> -
I13: =IF((E13+G13)>0,(E13+G13)/'Operational Data'!$G$21, "-") -> -
I14: =IF((E14+G14)>0,(E14+G14)/'Operational Data'!$G$21, "-") -> -
A15: Total Hazardous Waste | E15: =SUM(E11:F14) -> 5523 | G15: =SUM(G11:H14) -> 0 | I15: =IF((E15+G15)>0,(E15+G15)/'Operational Data'!$G$21, "-") -> 0.02680677571
A17: 2) Non-Hazardous Wastes
A18: IBA | C18: R5 | E18: 34048 | I18: =IF((E18+G18)>0,(E18+G18)/'Operational Data'!$G$21, "-") -> 0.1652574868
A19: Ferrous Metal | C19: R4 | E19: 2870 | I19: =IF((E19+G19)>0,(E19+G19)/'Operational Data'!$G$21, "-") -> 0.01393001019
A20: Process Water | I20: =IF((E20+G20)>0,(E20+G20)/'Operational Data'!$G$21, "-") -> -
I21: =IF((E21+G21)>0,(E21+G21)/'Operational Data'!$G$21, "-") -> -
I22: =IF((E22+G22)>0,(E22+G22)/'Operational Data'!$G$21, "-") -> -
A23: Total Non-Hazardous Waste | E23: =SUM(E18:F22) -> 36918 | G23: =SUM(G18:H22) -> 0 | I23: =IF((E23+G23)>0,(E23+G23)/'Operational Data'!$G$21, "-") -> 0.179187497
A24: TOTAL WASTE | E24: =+E23+E15 -> 42441 | G24: =+G23+G15 -> 0 | I24: =IF((E24+G24)>0,(E24+G24)/'Operational Data'!$G$21, "-") -> 0.2059942727
A26: Operator’s comments :
A31: =+A1 -> 2024 | B31: Annual Reporting of Water and Other Raw Material Usage
A32: Raw Material | E32: Usage | G32: Unit | H32: Specific Usage | J32: Unit
A33: Mains Water | E33: =+'Operational Data'!G42/1000 -> 57680 | G33: m3 | H33: =IF(E33>0,E33/'Operational Data'!$G$21,"-") -> 0.2799592292 | J33: m3/te
A34: Total Water | E34: =+'Operational Data'!G43+'Operational Data'!G42/1000 -> 57680 | G34: m3 | H34: =IF(E34>0,E34/'Operational Data'!$G$21,"-") -> 0.2799592292 | J34: m3/te
A35: Urea / Ammonia | E35: =+'Operational Data'!G45 -> 306000 | G35: kg | H35: =IF(E35>0,E35/'Operational Data'!$G$21,"-") -> 1.485220599 | J35: kg/te
A36: Activated Carbon | E36: =+'Operational Data'!G46 -> 95500 | G36: kg | H36: =IF(E36>0,E36/'Operational Data'!$G$21,"-") -> 0.4635247294 | J36: kg/te
A37: Lime / hydrated lime / Sodium Bicarb. | E37: =+'Operational Data'!G47 -> 1615260 | G37: kg | H37: =IF(E37>0,E37/'Operational Data'!$G$21,"-") -> 7.839926224 | J37: kg/te
A39: Operator’s comments :
A43: =+A31 -> 2024 | B43: Annual Reporting of other performance indicators
A44: Parameter | C44: Results by Line
C45: A1 | D45: A2 | E45: A3 | F45: A4 | G45: A5 | I45: Turbine
A46: Operating hours for the year, hours | C46: 8, 343 | D46: 8410 | I46: 8534.4
A47: Number of periods of abnormal operation, qty. | C47: 0 | D47: 0
A48: Cumulative hours of abnormal operation for this year, hours | C48: 0 | D48: 0
A50: Operator’s comments :
A54: Signed: | G54: Date: | H54: 20.01.2025

Sheet Energy Form 1
A1: =+'Cover Page'!C39 -> 2024 | B1: Annual Reporting of Energy Usage/Export
A3: =+'Cover Page'!B31 -> Permit EPR/BJ7093IY | F3: Operator: | G3: =+'Cover Page'!B37 -> Veolia
A5: Facility: | B5: =+'Cover Page'!B33:I33 -> Integra SouthWest Energy Recovery Facility | F5: Form: | G5: Energy 1
A7: Reporting Period from: | D7: 01.01.2024 | F7: to: | G7: 31.12.2024
A9: Energy Source | D9: Energy Usage | F9: Unit | G9: Specific Usage (KWh/tonne incinerated
A10: Electricity Produced | D10: =+'Operational Data'!G24 -> 126674.85 | F10: MWh | G10: =+'Operational Data'!H24 -> 614.836917
A11: Electricity Imported | D11: =+'Operational Data'!G27 -> 183.6 | F11: MWh | G11: =+'Operational Data'!H27 -> 0.8911323594
A12: Electricity Exported | D12: =+'Operational Data'!G25 -> 114974 | F12: MWh | G12: =+'Operational Data'!H25 -> 558.0449449
A13: Gas Oil | F13: tonnes | G13: 0
A14: Steam/hot water exported | D14: =+'Operational Data'!G30 -> 0 | F14: GWh | G14: 0
A18: Operator’s comments :
A29: Signed: | G29: Date: | H29: 20.01.2025

Sheet Permit Compliance
A1: =+'Cover Page'!$B$29 -> Annual Performance Report 2024 | E1: =+'Cover Page'!$B$33 -> Integra SouthWest Energy Recovery Facility
A3: Summary of Permit Compliance
A5: Compliance with permit limits for continuously monitored pollutants
A7: The plant met its emission limits as shown in the table below:
A8: Substance | C8: Percentage time compliant during operationNote 1 | L8: Notes:
C9: Half-hourly limit | F9: Daily limit | L9: Note 1: Please report to 2 decimal places, i.e. xx.xx% Note 2: Please enter into this table any permit non-compliances that the EA has given a CCS score for. Please also enter any other non-compliances which you have notified to the EA (e.g. ELV exceedances) but which have not yet been assessed by the EA. There is no need to enter any notifications which were subsequently assessed by the EA not to be permit breaches. Note 3: Please enter information here (rather than just referencing the notifications that were sent to the EA) including where relevant the incineration line reference, pollutant and value of the measured result for any ELV exceedances.
A10: Particulates | C10: 100 % | F10: 100 %
A11: Oxides of nitrogen | C11: 1 | F11: 100 %
A12: Sulphur dioxide | C12: 100 % | F12: 100 %
A13: Carbon monoxide | C13: 100 % or 100% 95% of 10-min averages | F13: 100 %
A14: Total organic carbon | C14: 100 % | F14: 100 %
A15: Hydrogen chloride | C15: 99.46 % | F15: 100 %
A16: Hydrogen fluoride | C16: 100 % | F16: 100 %
A19: Summary of non-compliances under the permit Note 2
A20: Date | B20: Summary of non-compliance Note 3 | D20: Reason | G20: Measures taken to prevent reoccurrence | H20: CCS score if applicable*
H21: Impact | I21: Root cause
A22: 09.01.2024 | B22: HCl HH average of 87.07 mg/m3 | D22: Sudden increase of HCL emissions | G22: Re-training of plant operators and share of best practise to the wider group | H22: 4 | I22: C1
A27: *If the Environment Agency (EA) has given a Compliance Classification Scheme (CCS) score due to a permit non-compliance it should be entered here (CCS4 = No impact; CCS3 = Minor impact; CCS2 = Significant impact; CCS1 = Major impact). If the EA has not yet assessed a non-compliance which you have notified to them, these columns should be left blank. Enter N/A if no score was given for the root cause.
A29: Summary of any complaints received and actions to taken to resolve them.
A30: Date | B30: Summary of complaint [including Line/Reference] | E30: Reason (including whether substantiated by the operator or the EA) | H30: Measures taken to prevent reoccurrence
A31: N/A | B31: N/A | E31: N/A | H31: N/A

Sheet Improvements
A1: =+'Cover Page'!$B$29 -> Annual Performance Report 2024 | E1: =+'Cover Page'!$B$33 -> Integra SouthWest Energy Recovery Facility
A3: Summary of Plant Improvements
A5: Summary of any efficiency improvements that have been completed within the year.
A6: Continuous planned preventive maintenance strategy and streamlining of assets
A16: Summary of any permit improvement conditions that have been completed within the year and the resulting environmental benefits.
A17: Improvement Condition number IC2 states that “The operator shall submit a report to the Environment Agency for approval on whether waste feed to the plant can be proven to have a low and stable mercury content. The report shall have regard to BAT 4 of the BAT conclusions, be based on historic mercury emissions monitoring data and have regard to the Environment Agency Mercury Monitoring Protocol.” Improvement Condition number IC3 states that “The operator shall submit a report to the Environment Agency for approval on whether dioxin emissions to air are stable. The report shall have regard to BAT 4 of the BAT conclusions, be based on historic dioxin emissions monitoring data and have regard to the Environment Agency Dioxins Monitoring Protocol." The EA reviewed the dioxins and mercury reports submitted and further information which was provided in response to the requirements of improvement conditions 2 and 3 in Schedule 1 of the Environmental Permit. These reports were submitted in line with permit condition 2.4.1 and, following the EA's review, they advised that we do not need to install continuous mercury monitors or continuous samplers for dioxins at this time due to the low data set. IC2 and IC3 have been discharged
A29: Summary of any other improvements made to the plant or planned to be made and a summary of the resulting environmental benefits.
A30: Every practicable opportunity to use the heat rejected at the steam condensers for beneficial local use is investigated. To date no cost effective or practicable options have become available. The site will continue to identify all possible opportunities, and investigate the practicalities of its installation. All viable developments will be implemented at the earliest opportunity. Raw materials used on site are trended by the Facility Manager and recorded on the company intranet so that benchmarks are visible to the group. These Key Performance Indicators (KPIs) are reviewed daily, weekly, monthly and annually. If any opportunities arise which would result in reduction or avoidance in raw material usage, they will be implemented at the earliest convenience.

Sheet Public Liasion
A1: =+'Cover Page'!$B$29 -> Annual Performance Report 2024 | E1: =+'Cover Page'!$B$33 -> Integra SouthWest Energy Recovery Facility
A3: Details of Public & Stakeholder Liaison
A5: Summary of events held during the reporting year.
A6: Date | C6: Description
A7: 9th October 2024 | C7: Veolia Wonder Day: Veolia invites visitors from across the county to come along and discover what happens at our waste management facilities. Behind the scenes tours and activities offer an insight into the entire integrated network of our recycling and recovery operations and the importance of disposing of your waste properly. A successful 125 people prebooked and attended on the day.
A16: List of events planned for next year
A17: Date | C17: Description
A18: TBC | C18: Veolia Wonder Day 2025
A29: If you wish to be involved in the public liaison programme, please contact _________________

Sheet CO2 N2O
A1: =+'Cover Page'!$B$29 -> Annual Performance Report 2024 | C1: =+'Cover Page'!$B$33 -> Integra SouthWest Energy Recovery Facility
A3: Carbon dioxide emissions and biogenic content of waste inputs | F3: Notes:
A5: Carbon dioxide emissions (all types of plant)
B6: Annual mass of carbon dioxide released | C6: tonnes | D6: 192190.27
B7: Annual mass of carbon dioxide released per tonne of waste burned | C7: t CO2 / t waste | D7: 0.93
B8: Annual mass of carbon dioxide released per MWh of energy exported | C8: t CO2 / MWh export | D8: 1.67
B9: Description of how annual carbon dioxide mass emission has been calculated. See Note 1 | C9: CEMS data | F9: Note 1: All permits require operators to continuously monitor CO2 to EN14181 and flow to BS EN 16911-2 (unless otherwise agreed in writing). Operators must therefore use the results from these instruments to calculate their annual CO2 emissions. Where an operator does not have a flow meter calibrated to BS EN 16911-2, the averaged flow measurement from that year's periodic monitoring can be used instead. If the plant does not have calibrated CO2 CEMS, a suitably justified emissions factor can be used.
A10: Nitrous oxide emissions (only plants which use ammonia or urea to abate NOx emissions)
B11: Annual mass emissions of nitrous oxide | C11: tonnes N2O | D11: 17.9559
B12: Description of how annual nitrous oxide mass emission has been calculated See Note 2 | C12: CEMS data | F12: Note 2: All permits require operators to continuously monitor N2O to EN14181 and flow to BS EN 16911-2, unless otherwise agreed in writing. Operators must therefore use the results from these instruments to calculate their annual N2O emissions. Where an operator does not have a flow meter calibrated to BS EN 16911-2, the averaged flow measurement from periodic monitoring can be used instead. If the plant does not have calibrated N2O CEMS, data from periodic monitoring or a suitably justified emissions factor can be used instead.
A13: Total annual carbon dioxide + nitrous oxide emissions. See Note 3. | C13: tonnes CO2e | D13: 196948 | F13: Note 3: Total annual carbon dioxide and nitrous oxide emissions reported as carbon dioxide equivalent where 1 tonne nitrous oxide is equivalent to 265 tonnes carbon dioxide.
A14: Biogenic CO2 emissions (See Note 4) | F14: Note 4: Only plants combusting residual municipal waste, refuse derived fuel or solid recovered fuel need complete this section.
B15: Percentage of total carbon dioxide emissions arising from biogenic waste | C15: % | D15: 99554
B16: Description of how percentage biogenic carbon dioxide emissions have been measured or calculated. See Note 5 | C16: Combused waste multiplied by the WRAP data for residual waste of 51.8% | F16: Note 5: The results from C14 sampling should be used if this is carried out at the plant (either via an installed sampler or from spot samples). Otherwise, as an approximation (and in lieu of any more accurate metrics which may be developed in future), the measured or estimated biogenic fraction by net calorific value (see Note 6) can be assumed to be the same as the biogenic CO2 fraction of the total CO2 emissions from the plant.
A17: Biogenic fraction of waste feedstock (See Note 4)
B18: Yearly average biogenic percentage of the waste by net calorific value (NCV) | C18: 0.518 | D18: 99554
B19: Description of how biogenic percentage (by NCV) has been calculated or estimated. See Note 6 | C19: Wrap data for residual waste of 51.8% | F19: Note 6: If C14 sampling is carried out at the plant, the methodology set out in the embedded document entitled "Renewable Energy Association Energy Content of Fuels - Description of Method" embedded below can be used to calculate the biogenic percentage by net calorific value. Otherwise, data from waste sampling or BIOMA software can be used; or if none of these are available, an estimated figure with justification or a figure assumed on the basis of up-to-date industry data can be used.
B20: Yearly average biogenic percentage of the waste by mass | C20: 0.518 | D20: 99554
B21: Description of how biogenic percentage (by mass) has been calculated or estimated. See Note 7 | C21: Wrap data for residual waste of 51.8%
B23: Comments:
F24: Note 7: Where available, data from waste sampling should be used; otherwise, an estimated figure with justification can be used, or a figure assumed on the basis of up-to-date industry data.

Sheet Residue Quality
A1: =+'Cover Page'!$B$29 -> Annual Performance Report 2024 | E1: =+'Cover Page'!$B$33 -> Integra SouthWest Energy Recovery Facility
A3: Residue Quality Monitoring Requirements
A5: Summary of monitoring undertaken and compliance
A6: IBA - Two samples per month are analysed under the ESA protocol One sample per quarter analysed for Permit requirements
A8: APCr - One sample per quarter analysed for Permit requirements
A13: Commentary on any specific events
A14: Date & Event | C14: Description
A27: Residue Quality Monitoring Results
A28: Parameter (unit) | C28: Limit* | D28: Normal Operation
D29: Bottom ash | F29: APC Residues
A30: Loss on Ignition (average %) | C30: <5%
A31: Total Organic Carbon (average %) | C31: <3% | D31: 1.05
A32: No. of Assessments Undertaken | C32: --- | D32: 4 | F32: 4
A33: No. of Hazardous Results | C33: --- | D33: 0
A34: * The permit will specify a limit of either 5% loss on ignition or 3% total organic carbon. If both are measured anyway, please enter the results here, even where the limit does not apply.
A36: Comments :
A37: TOC result is the average of the quarterly values

Sheet Water
A1: =+'Cover Page'!$B$29 -> Annual Performance Report 2024 | E1: =+'Cover Page'!$B$33 -> Integra SouthWest Energy Recovery Facility
A3: Emissions to Water
A5: Summary of monitoring undertaken and compliance
A6: No EPR requirements to monitor discharges to sewer. Any discharges are regulated by the water authorities
A13: Commentary on any specific events
A14: Date & Event | C14: Description
A22: Emissions to Water / Sewer
A23: Parameter | D23: Monitoring Frequency | F23: Limit | G23: Target | H23: Max. | I23: Average
A24: None

Sheet Air (periodic)
A1: =+'Cover Page'!$B$29 -> Annual Performance Report 2024 | E1: =+'Cover Page'!$B$33 -> Integra SouthWest Energy Recovery Facility
A3: Emissions to Air (periodically monitored)
A5: Summary of monitoring undertaken, standards used and compliance | K5: Notes:
A6: Monitoring undertaken in accordance with the standards listed in the Permit, compliance was maintained for 100% of 2024 | K6: Template may require adjustment for any bespoke monitoring requirements of permit - please also check that all default ELV values, reference periods and the stated oxygen reference value match those for your plant, and edit if necessary!
A9: Results of emissions to air that are periodically monitored - oxygen reference 11%
A10: Substance | C10: Ref. Period | D10: Emission Limit Value | F10: Average | K10: User to add additional tables as necessary, depending on whether quarterly or bi-annual reporting is required for the compliance year
F11: A1 | G11: A2 | H11: A3 | I11: A4 | J11: A5
A12: Hydrogen fluoride | C12: 1 hr | D12: 1 mg/m3 | F12: =AVERAGE(0.038,0.05) -> 0.044 | G12: =AVERAGE(0.05,0.04) -> 0.045
A13: Cd and Tl and their compounds | C13: 0.5-8hrs | D13: 0.02 mg/m3 | F13: =AVERAGE(0.003,0.002) -> 0.0025 | G13: =AVERAGE(0.0014,0.002) -> 0.0017
A14: Hg and its compounds | C14: 0.5-8hrs | D14: 0.02 mg/m3 | F14: =AVERAGE(0.004,0.001) -> 0.0025 | G14: =AVERAGE(0.002,0.001) -> 0.0015
A15: Sb, As, Pb, Cr, Co, Cu, Mn, Ni, V and their compounds | C15: 0.5-8hrs | D15: 0.3 mg/m3 | F15: =AVERAGE(0.071,0.055) -> 0.063 | G15: =AVERAGE(0.015,0.01) -> 0.0125
A16: Dioxins & Furans (I-TEQ) | C16: 6-8hrs | D16: 0.06 ng/m3 | F16: =AVERAGE(0.0019,0.0428) -> 0.02235 | G16: =AVERAGE(0.0015,0.0015) -> 0.0015
A17: PCBs (WHO-TEQ Humans / Mammals) | C17: 6-8hrs | D17: None set ng/m3 | F17: =AVERAGE(0.000111,0.0084) -> 0.0042555 | G17: =AVERAGE(0.000112,0.0003) -> 0.000206
A18: PCBs (WHO-TEQ Fish) | C18: 6-8hrs | D18: None set ng/m3 | F18: =AVERAGE(0.000006,0.0004) -> 0.000203 | G18: =AVERAGE(0.000006,0.00001) -> 8e-06
A19: PCBs (WHO-TEQ Birds) | C19: 6-8hrs | D19: None set ng/m3 | F19: =AVERAGE(0.000393,0.0182) -> 0.0092965 | G19: =AVERAGE(0.000465,0.0007) -> 0.0005825
A20: Dioxins & Furans (WHO-TEQ Humans / Mammals) | C20: 6-8hrs | D20: None set ng/m3 | F20: =AVERAGE(0.0018,0.042) -> 0.0219 | G20: =AVERAGE(0.0014,0.0015) -> 0.00145
A21: Dioxins & Furans (WHO-TEQ Fish) | C21: 6-8hrs | D21: None set ng/m3 | F21: =AVERAGE(0.0018,0.0489) -> 0.02535 | G21: =AVERAGE(0.0012,0.0017) -> 0.00145
A22: Dioxins & Furans (WHO-TEQ Birds) | C22: 6-8hrs | D22: None set ng/m3 | F22: =AVERAGE(0.0048,0.0902) -> 0.0475 | G22: =AVERAGE(0.0035,0.0029) -> 0.0032
A23: Anthanthrene | C23: 6-8hrs | D23: None set µg/m3 | F23: 0.0013 | G23: 0.001
A24: Benzo(a)anthracene | C24: 6-8hrs | D24: None set µg/m3 | F24: 0.0013 | G24: 0.001
A25: Benzo(a)pyrene | C25: 6-8hrs | D25: None set µg/m3 | F25: 0.0013 | G25: 0.001
A26: Benzo(b)fluoranthene | C26: 6-8hrs | D26: None set µg/m3 | F26: 0.0013 | G26: 0.001
A27: Benzo(b)naptho(2,1-d) thiophene | C27: 6-8hrs | D27: None set µg/m3 | F27: 0.0013 | G27: 0.001
A28: Benzo(c)phenanthrene | C28: 6-8hrs | D28: None set µg/m3 | F28: 0.0013 | G28: 0.001
A29: Benzo(ghi)perylene | C29: 6-8hrs | D29: None set µg/m3 | F29: 0.0013 | G29: 0.001
A30: Benzo(k)fluoranthene | C30: 6-8hrs | D30: None set µg/m3 | F30: 0.0013 | G30: 0.001
A31: Cholanthrene | C31: 6-8hrs | D31: None set µg/m3 | F31: 0.0013 | G31: 0.001
A32: Chrysene | C32: 6-8hrs | D32: None set µg/m3 | F32: 0.0013 | G32: 0.001
A33: Cyclopenta(cd)pyrene | C33: 6-8hrs | D33: None set µg/m3 | F33: 0.0013 | G33: 0.001
A34: Dibenzo(ai)pyrene | C34: 6-8hrs | D34: None set µg/m3 | F34: 0.0013 | G34: 0.001
A35: Dibenzo(ah)anthracene | C35: 6-8hrs | D35: None set µg/m3 | F35: 0.0013 | G35: 0.001
A36: Fluoranthene | C36: 6-8hrs | D36: None set µg/m3 | F36: 0.0179 | G36: 0.01
A37: Indeno(123-cd) pyrene | C37: 6-8hrs | D37: None set µg/m3 | F37: 0.0013 | G37: 0.001
A38: Naphthalene | C38: 6-8hrs | D38: None set µg/m3 | F38: 0.2332 | G38: 0.31
A39: Comments :
A40: Results below the LOD are reported as the LOD

Sheet Air (CEMS)
A1: =+'Cover Page'!$B$29 -> Annual Performance Report 2024 | I1: =+'Cover Page'!$B$33 -> Integra SouthWest Energy Recovery Facility
A3: Emissions to Air (continuously monitored)
N4: Notes:
A5: Summary of monitoring undertaken, standards used and compliance | N5: Template may require adjustment for any bespoke monitoring requirements of permit
N6: Please check that all default ELV values match those for your plant and edit if necessary!
N7: Report to 1 decimal place
A11: Results of emissions to air that are continuously monitored (maximum and average values for each line) - oxygen reference 11%
A12: Substance | B12: Reference Period | C12: Emission Limit Value | D12: A1 | F12: A2 | H12: A3 | J12: A4 | L12: A5
D13: Max. | E13: Avg. | F13: Max. | G13: Avg. | H13: Max. | I13: Avg. | J13: Max. | K13: Avg. | L13: Max. | M13: Avg.
A14: Oxides of nitrogen | B14: Daily mean | C14: 180 mg/m3 | D14: =NOx!O19 -> 169.71 | E14: =NOx!N19 -> 140.6016667 | F14: =NOx!O34 -> 175.61 | G14: =NOx!N34 -> 145.3333333
B15: ½ hourly mean | C15: 400 mg/m3 | D15: =NOx!M19 -> 318.65 | E15: =NOx!L19 -> 140.4358333 | F15: =NOx!M34 -> 371.09 | G15: =NOx!L34 -> 145.2758333
A16: Particulates | B16: Daily mean | C16: 5 mg/m3 | D16: =Particulates!O19 -> 2.37 | E16: =Particulates!N19 -> 1.250833333 | F16: =Particulates!O34 -> 2.46 | G16: =Particulates!N34 -> 0.9933333333
B17: ½ hourly mean | C17: 30 mg/m3 | D17: =Particulates!M19 -> 5.79 | E17: =Particulates!L19 -> 1.250833333 | F17: =Particulates!M34 -> 5.89 | G17: =Particulates!L34 -> 0.9958333333
A18: Total Organic Carbon | B18: Daily mean | C18: 10 mg/m3 | D18: =TOC!O19 -> 4.58 | E18: =TOC!N19 -> 1.311666667 | F18: =TOC!O34 -> 5.3 | G18: =TOC!N34 -> 1.271666667
B19: ½ hourly mean | C19: 20 mg/m3 | D19: =TOC!M19 -> 11.88 | E19: =TOC!L19 -> 1.319166667 | F19: =TOC!M34 -> 16.33 | G19: =TOC!L34 -> 1.273333333
A20: Hydrogen chloride | B20: Daily mean | C20: 8 mg/m3 | D20: =HCl!O19 -> 6.19 | E20: =HCl!N19 -> 3.6325 | F20: =HCl!O34 -> 6.04 | G20: =HCl!N34 -> 3.910833333
B21: ½ hourly mean | C21: 60 mg/m3 | D21: =HCl!M19 -> 29.34 | E21: =HCl!L19 -> 3.626666667 | F21: =HCl!M34 -> 87.07 | G21: =HCl!L34 -> 3.911666667
A22: Sulphur dioxide | B22: Daily mean | C22: 40 mg/m3 | D22: ='SO2'!O19 -> 26.77 | E22: ='SO2'!N19 -> 9.9075 | F22: ='SO2'!O34 -> 28.05 | G22: ='SO2'!N34 -> 11.74666667
B23: ½ hourly mean | C23: 200 mg/m3 | D23: ='SO2'!M19 -> 120.25 | E23: ='SO2'!L19 -> 9.938333333 | F23: ='SO2'!M34 -> 121.37 | G23: ='SO2'!L34 -> 11.8025
A24: Carbon monoxide | B24: Daily mean | C24: 50 mg/m3 | D24: ='CO 95% 10 min'!Q22 -> 26.69 | E24: ='CO 95% 10 min'!P22 -> 13.31916667 | F24: ='CO 95% 10 min'!Q37 -> 39.6 | G24: ='CO 95% 10 min'!P37 -> 14.2125
B25: 95%ile 10-min avg * | C25: 150 mg/m3 * | D25: 26.69 | E25: 13.31916667 | F25: 39.6 | G25: 14.2125
A26: Ammonia | B26: Daily mean | C26: 15 mg/m3 | D26: ='NH3'!O19 -> 12.52 | E26: ='NH3'!N19 -> 6.370833333 | F26: ='NH3'!O34 -> 13.51 | G26: 5.335833333
A27: * = delete as appropriate, depending on whether your plant has half-hourly or 10-min CO ELVs
A28: Comments :

Sheet HCl
A1: =+'Cover Page'!$B$29 -> Annual Performance Report 2024 | E1: =+'Cover Page'!$B$33 -> Integra SouthWest Energy Recovery Facility
A3: Monitoring of Hydrogen Chloride emissions | D3: Whole Installation | G3: See Notes in Cell Q3 | J3: =+A3 -> Monitoring of Hydrogen Chloride emissions | N3: Per Combustion Line | Q3: Notes:
Q4: User to add logic to complete Whole installation, Table A5:G18. From the data in Per Combustion Line, Table J6:O79, subject to No. of lines installed
A5: =+'Cover Page'!C39 -> 2024 | B5: 1/2 Hourly Reference Periods | E5: Daily Reference Periods
A6: mg/Nm3 | B6: 1/2 hourly HCl ELV | C6: Monthly mean of half-hourly averages | D6: Highest half- hourly average | E6: Daily HCl ELV | F6: Monthly mean of daily averages | G6: Highest daily average | J6: =+A5 -> 2024 | K6: mg/Nm3 | L6: Monthly mean of half-hourly averages | M6: Highest half- hourly average | N6: Monthly mean of daily averages | O6: Highest daily average
A7: Jan | B7: 60 | C7: =(L7+L22)/2 -> 4.45 | D7: 58.205 | E7: 8 | F7: =(N7+N22)/2 -> 4.45 | G7: 6.115 | J7: A1 | K7: Jan | L7: 4.34 | M7: 29.34 | N7: 4.34 | O7: 6.19
A8: Feb | B8: 60 | C8: 3.7 | D8: =(M8+M23)/2 -> 20.655 | E8: 8 | F8: =(N8+N23)/2 -> 3.71 | G8: 5.22 | K8: Feb | L8: 3.4 | M8: 16.51 | N8: 3.42 | O8: 4.72
A9: Mar | B9: 60 | C9: 4.255 | D9: 23.955 | E9: 8 | F9: =(N9+N24)/2 -> 4.255 | G9: 5.56 | K9: Mar | L9: 4.56 | M9: 18.93 | N9: 4.56 | O9: 5.49 | Q9: Whole Installation table A5:G18:
A10: Apr | B10: 60 | C10: 3.665 | D10: 17.31 | E10: 8 | F10: =(N10+N25)/2 -> 3.665 | G10: 5.055 | K10: Apr | L10: 3.67 | M10: 15.07 | N10: 3.69 | O10: 4.79 | Q10: Mean: for 1/2 hourly and daily periods calculate mean of values across all operational combustion lines for the month
A11: May | B11: 60 | C11: 4.035 | D11: 26.38 | E11: 8 | F11: =(N11+N26)/2 -> 4.03 | G11: 5.21 | K11: May | L11: 3.47 | M11: 21.52 | N11: 3.46 | O11: 4.64
A12: Jun | B12: 60 | C12: 4.385 | D12: 23.795 | E12: 8 | F12: =(N12+N27)/2 -> 4.385 | G12: 5.295 | K12: Jun | L12: 4.31 | M12: 13.78 | N12: 4.31 | O12: 5.45
A13: Jul | B13: 60 | C13: 4.005 | D13: 31.18 | E13: 8 | F13: =(N13+N28)/2 -> 4.02 | G13: 5.045 | K13: Jul | L13: 3.91 | M13: 16.12 | N13: 3.92 | O13: 4.9 | Q13: Maximum: for 1/2 hourly and daily periods use the highest value across all operational combustion lines for the month
A14: Aug | B14: 60 | C14: 3.8 | D14: 31.915 | E14: 8 | F14: =(N14+N29)/2 -> 3.805 | G14: 4.54 | K14: Aug | L14: 3.63 | M14: 20.64 | N14: 3.64 | O14: 4.33
A15: Sep | B15: 60 | C15: 3.795 | D15: 20.74 | E15: 8 | F15: =(N15+N30)/2 -> 3.795 | G15: 4.785 | K15: Sep | L15: 3.86 | M15: 19.97 | N15: 3.86 | O15: 4.67
A16: Oct | B16: 60 | C16: 3.39 | D16: 18.005 | E16: 8 | F16: =(N16+N31)/2 -> 3.39 | G16: 4.395 | K16: Oct | L16: 3.27 | M16: 19.72 | N16: 3.27 | O16: 4.19
A17: Nov | B17: 60 | C17: 3.39 | D17: 22.205 | E17: 8 | F17: =(N17+N32)/2 -> 3.385 | G17: 5.25 | K17: Nov | L17: 3.11 | M17: 10.29 | N17: 3.11 | O17: 4.75
A18: Dec | B18: 60 | C18: 2.36 | D18: 19.415 | E18: 8 | F18: =(N18+N33)/2 -> 2.37 | G18: 4 | K18: Dec | L18: 1.99 | M18: 12.46 | N18: 2.01 | O18: 3.93
K19: Annual | L19: =AVERAGE(L7:L18) -> 3.626666667 | M19: =MAX(M7:M18) -> 29.34 | N19: =AVERAGE(N7:N18) -> 3.6325 | O19: =MAX(O7:O18) -> 6.19
J21: =+A5 -> 2024 | K21: mg/Nm3 | L21: Monthly mean of half-hourly averages | M21: Highest half- hourly average | N21: Monthly mean of daily averages | O21: Highest daily average
J22: A2 | K22: Jan | L22: 4.56 | M22: 87.07 | N22: 4.56 | O22: 6.04
K23: Feb | L23: 4 | M23: 24.8 | N23: 4 | O23: 5.72
K24: Mar | L24: 3.95 | M24: 28.98 | N24: 3.95 | O24: 5.63
K25: Apr | L25: 3.66 | M25: 19.55 | N25: 3.64 | O25: 5.32
K26: May | L26: 4.6 | M26: 31.24 | N26: 4.6 | O26: 5.78
K27: Jun | L27: 4.46 | M27: 33.81 | N27: 4.46 | O27: 5.14
K28: Jul | L28: 4.1 | M28: 46.24 | N28: 4.12 | O28: 5.19
K29: Aug | L29: 3.97 | M29: 43.19 | N29: 3.97 | O29: 4.75
K30: Sep | L30: 3.73 | M30: 21.51 | N30: 3.73 | O30: 4.9
K31: Oct | L31: 3.51 | M31: 16.29 | N31: 3.51 | O31: 4.6
K32: Nov | L32: 3.67 | M32: 34.12 | N32: 3.66 | O32: 5.75
K33: Dec | L33: 2.73 | M33: 26.37 | N33: 2.73 | O33: 4.07
K34: Annual | L34: =AVERAGE(L22:L33) -> 3.911666667 | M34: =MAX(M22:M33) -> 87.07 | N34: =AVERAGE(N22:N33) -> 3.910833333 | O34: =MAX(O22:O33) -> 6.04
J36: =+A5 -> 2024 | K36: mg/Nm3 | L36: Monthly mean of half-hourly averages | M36: Highest half- hourly average | N36: Monthly mean of daily averages | O36: Highest daily average
J37: A3 | K37: Jan
K38: Feb
K39: Mar
K40: Apr
K41: May
K42: Jun
K43: Jul
K44: Aug
K45: Sep
K46: Oct
K47: Nov
A48: Comments : | K48: Dec
K49: Annual | L49: =AVERAGE(L37:L48) -> #DIV/0! | M49: =MAX(M37:M48) -> 0 | N49: =AVERAGE(N37:N48) -> #DIV/0! | O49: =MAX(O37:O48) -> 0
J51: =+A5 -> 2024 | K51: mg/Nm3 | L51: Monthly mean of half-hourly averages | M51: Highest half- hourly average | N51: Monthly mean of daily averages | O51: Highest daily average
J52: A4 | K52: Jan
K53: Feb
K54: Mar
K55: Apr
K56: May
K57: Jun
K58: Jul
K59: Aug
K60: Sep
K61: Oct
K62: Nov
K63: Dec
K64: Annual | L64: =AVERAGE(L52:L63) -> #DIV/0! | M64: =MAX(M52:M63) -> 0 | N64: =AVERAGE(N52:N63) -> #DIV/0! | O64: =MAX(O52:O63) -> 0
J66: =+A5 -> 2024 | K66: mg/Nm3 | L66: Monthly mean of half-hourly averages | M66: Highest half- hourly average | N66: Monthly mean of daily averages | O66: Highest daily average
J67: A5 | K67: Jan
K68: Feb
K69: Mar
K70: Apr
K71: May
K72: Jun
K73: Jul
K74: Aug
K75: Sep
K76: Oct
K77: Nov
K78: Dec
K79: Annual | L79: =AVERAGE(L67:L78) -> #DIV/0! | M79: =MAX(M67:M78) -> 0 | N79: =AVERAGE(N67:N78) -> #DIV/0! | O79: =MAX(O67:O78) -> 0

Sheet SO2
A1: =+'Cover Page'!$B$29 -> Annual Performance Report 2024 | E1: =+'Cover Page'!$B$33 -> Integra SouthWest Energy Recovery Facility
A3: Monitoring of Sulphur dioxide emissions | D3: Whole Installation | G3: See Notes in Cell Q3 | J3: =+A3 -> Monitoring of Sulphur dioxide emissions | N3: Per Combustion Line | Q3: Notes:
Q4: User to add logic to complete Whole installation, Table A5:G18. From the data in Per Combustion Line, Table J6:O79, subject to No. of lines installed
A5: =+'Cover Page'!C39 -> 2024 | B5: 1/2 Hourly Reference Periods | E5: Daily Reference Periods
A6: mg/Nm3 | B6: 1/2 hourly SO2 ELV | C6: Monthly mean of half-hourly averages | D6: Highest half- hourly average | E6: Daily SO2 ELV | F6: Monthly mean of daily averages | G6: Highest daily average | J6: =+A5 -> 2024 | K6: mg/Nm3 | L6: Monthly mean of half-hourly averages | M6: Highest half- hourly average | N6: Monthly mean of daily averages | O6: Highest daily average
A7: Jan | B7: 200 | C7: =(L7+L22)/2 -> 9.845 | D7: 96.385 | E7: 40 | F7: =(N7+N22)/2 -> 9.845 | G7: 17.035 | J7: A1 | K7: Jan | L7: 8.15 | M7: 104.5 | N7: 8.14 | O7: 17.14
A8: Feb | B8: 200 | C8: =(L8+L23)/2 -> 10.275 | D8: 87.11 | E8: 40 | F8: =(N8+N23)/2 -> 10.335 | G8: 16.875 | K8: Feb | L8: 12.6 | M8: 101.53 | N8: 12.72 | O8: 21.17
A9: Mar | B9: 200 | C9: =(L9+L24)/2 -> 14.07 | D9: 84.945 | E9: 40 | F9: =(N9+N24)/2 -> 14.055 | G9: 22.52 | K9: Mar | L9: 15.55 | M9: 77.66 | N9: 15.54 | O9: 21.48 | Q9: Whole Installation table A5:G18:
A10: Apr | B10: 200 | C10: =(L10+L25)/2 -> 7.735 | D10: 66.495 | E10: 40 | F10: =(N10+N25)/2 -> 7.39 | G10: 17.275 | K10: Apr | L10: 7.77 | M10: 70.24 | N10: 7.81 | O10: 13.03 | Q10: Mean: for 1/2 hourly and daily periods calculate mean of values across all operational combustion lines for the month
A11: May | B11: 200 | C11: =(L11+L26)/2 -> 16.615 | D11: 96.615 | E11: 40 | F11: =(N11+N26)/2 -> 16.62 | G11: 27.41 | K11: May | L11: 16.28 | M11: 94.36 | N11: 16.29 | O11: 26.77
A12: Jun | B12: 200 | C12: =(L12+L27)/2 -> 12.685 | D12: 85.95 | E12: 40 | F12: =(N12+N27)/2 -> 12.675 | G12: 19.225 | K12: Jun | L12: 12.09 | M12: 91.96 | N12: 12.08 | O12: 17.66
A13: Jul | B13: 200 | C13: =(L13+L28)/2 -> 11.81 | D13: 104.52 | E13: 40 | F13: =(N13+N28)/2 -> 11.85 | G13: 20.68 | K13: Jul | L13: 9.92 | M13: 120.25 | N13: 9.91 | O13: 20.41 | Q13: Maximum: for 1/2 hourly and daily periods use the highest value across all operational combustion lines for the month
A14: Aug | B14: 200 | C14: =(L14+L29)/2 -> 7.795 | D14: 108.345 | E14: 40 | F14: =(N14+N29)/2 -> 7.785 | G14: 18.78 | K14: Aug | L14: 5.86 | M14: 101.75 | N14: 5.85 | O14: 18.94
A15: Sep | B15: 200 | C15: =(L15+L30)/2 -> 8.255 | D15: 109.885 | E15: 40 | F15: =(N15+N30)/2 -> 8.17 | G15: 16.955 | K15: Sep | L15: 7.01 | M15: 98.4 | N15: 6.84 | O15: 20.12
A16: Oct | B16: 200 | C16: =(L16+L31)/2 -> 8.645 | D16: 105.92 | E16: 40 | F16: =(N16+N31)/2 -> 8.675 | G16: 17.405 | K16: Oct | L16: 6.35 | M16: 105.08 | N16: 6.42 | O16: 12.09
A17: Nov | B17: 200 | C17: =(L17+L32)/2 -> 7.515 | D17: 103.285 | E17: 40 | F17: =(N17+N32)/2 -> 7.32 | G17: 17.925 | K17: Nov | L17: 5.05 | M17: 112.03 | N17: 4.67 | O17: 17.44
A18: Dec | B18: 200 | C18: =(L18+L33)/2 -> 15.2 | D18: 82.885 | E18: 40 | F18: =(N18+N33)/2 -> 15.205 | G18: 23.82 | K18: Dec | L18: 12.63 | M18: 79.74 | N18: 12.62 | O18: 20.24
K19: Annual | L19: =AVERAGE(L7:L18) -> 9.938333333 | M19: =MAX(M7:M18) -> 120.25 | N19: =AVERAGE(N7:N18) -> 9.9075 | O19: =MAX(O7:O18) -> 26.77
J21: =+A5 -> 2024 | K21: mg/Nm3 | L21: Monthly mean of half-hourly averages | M21: Highest half- hourly average | N21: Monthly mean of daily averages | O21: Highest daily average
J22: A2 | K22: Jan | L22: 11.54 | M22: 88.27 | N22: 11.55 | O22: 16.93
K23: Feb | L23: 7.95 | M23: 72.69 | N23: 7.95 | O23: 12.58
K24: Mar | L24: 12.59 | M24: 92.23 | N24: 12.57 | O24: 23.56
K25: Apr | L25: 7.7 | M25: 62.75 | N25: 6.97 | O25: 21.52
K26: May | L26: 16.95 | M26: 98.87 | N26: 16.95 | O26: 28.05
K27: Jun | L27: 13.28 | M27: 79.94 | N27: 13.27 | O27: 20.79
K28: Jul | L28: 13.7 | M28: 88.79 | N28: 13.79 | O28: 20.95
K29: Aug | L29: 9.73 | M29: 114.94 | N29: 9.72 | O29: 18.62
K30: Sep | L30: 9.5 | M30: 121.37 | N30: 9.5 | O30: 13.79
K31: Oct | L31: 10.94 | M31: 106.76 | N31: 10.93 | O31: 22.72
K32: Nov | L32: 9.98 | M32: 94.54 | N32: 9.97 | O32: 18.41
K33: Dec | L33: 17.77 | M33: 86.03 | N33: 17.79 | O33: 27.4
K34: Annual | L34: =AVERAGE(L22:L33) -> 11.8025 | M34: =MAX(M22:M33) -> 121.37 | N34: =AVERAGE(N22:N33) -> 11.74666667 | O34: =MAX(O22:O33) -> 28.05
J36: =+A5 -> 2024 | K36: mg/Nm3 | L36: Monthly mean of half-hourly averages | M36: Highest half- hourly average | N36: Monthly mean of daily averages | O36: Highest daily average
J37: A3 | K37: Jan
K38: Feb
K39: Mar
K40: Apr
K41: May
K42: Jun
K43: Jul
K44: Aug
K45: Sep
K46: Oct
K47: Nov
A48: Comments : | K48: Dec
K49: Annual | L49: =AVERAGE(L37:L48) -> #DIV/0! | M49: =MAX(M37:M48) -> 0 | N49: =AVERAGE(N37:N48) -> #DIV/0! | O49: =MAX(O37:O48) -> 0
J51: =+A5 -> 2024 | K51: mg/Nm3 | L51: Monthly mean of half-hourly averages | M51: Highest half- hourly average | N51: Monthly mean of daily averages | O51: Highest daily average
J52: A4 | K52: Jan
K53: Feb
K54: Mar
K55: Apr
K56: May
K57: Jun
K58: Jul
K59: Aug
K60: Sep
K61: Oct
K62: Nov
K63: Dec
K64: Annual | L64: =AVERAGE(L52:L63) -> #DIV/0! | M64: =MAX(M52:M63) -> 0 | N64: =AVERAGE(N52:N63) -> #DIV/0! | O64: =MAX(O52:O63) -> 0
J66: =+A5 -> 2024 | K66: mg/Nm3 | L66: Monthly mean of half-hourly averages | M66: Highest half- hourly average | N66: Monthly mean of daily averages | O66: Highest daily average
J67: A5 | K67: Jan
K68: Feb
K69: Mar
K70: Apr
K71: May
K72: Jun
K73: Jul
K74: Aug
K75: Sep
K76: Oct
K77: Nov
K78: Dec
K79: Annual | L79: =AVERAGE(L67:L78) -> #DIV/0! | M79: =MAX(M67:M78) -> 0 | N79: =AVERAGE(N67:N78) -> #DIV/0! | O79: =MAX(O67:O78) -> 0

Sheet NOx
A1: =+'Cover Page'!$B$29 -> Annual Performance Report 2024 | E1: =+'Cover Page'!$B$33 -> Integra SouthWest Energy Recovery Facility
A3: Monitoring of Oxides of Nitrogen emissions | D3: Whole Installation | G3: See Notes in Cell Q3 | J3: =+A3 -> Monitoring of Oxides of Nitrogen emissions | N3: Per Combustion Line | Q3: Notes:
Q4: User to add logic to complete Whole installation, Table A5:G18. From the data in Per Combustion Line, Table J6:O79, subject to No. of lines installed
A5: =+'Cover Page'!C39 -> 2024 | B5: 1/2 Hourly Reference Periods | E5: Daily Reference Periods
A6: mg/Nm3 | B6: 1/2 hourly NOx ELV | C6: Monthly mean of half-hourly averages | D6: Highest half- hourly average | E6: Daily NOx ELV | F6: Monthly mean of daily averages | G6: Highest daily average | J6: =+A5 -> 2024 | K6: mg/Nm3 | L6: Monthly mean of half-hourly averages | M6: Highest half- hourly average | N6: Monthly mean of daily averages | O6: Highest daily average
A7: Jan | B7: 400 | C7: 140.255 | D7: =(M7+M22)/2 -> 299.5 | E7: 180 | F7: =(N7+N22)/2 -> 140.225 | G7: 161.84 | J7: A1 | K7: Jan | L7: 123.82 | M7: 261.25 | N7: 123.74 | O7: 155.34
A8: Feb | B8: 400 | C8: 140.275 | D8: 270.79 | E8: 180 | F8: 141.25 | G8: =(O8+O23)/2 -> 168.04 | K8: Feb | L8: 138.75 | M8: 253.3 | N8: 140.73 | O8: 169.71
A9: Mar | B9: 400 | C9: 149.18 | D9: 288.835 | E9: 180 | F9: 149.225 | G9: 168.855 | K9: Mar | L9: 152.08 | M9: 318.65 | N9: 152.14 | O9: 167.34 | Q9: Whole Installation table A5:G18:
A10: Apr | B10: 400 | C10: 150.325 | D10: 268.47 | E10: 180 | F10: 150.295 | G10: 161.885 | K10: Apr | L10: 146.94 | M10: 285.42 | N10: 146.99 | O10: 156.87 | Q10: Mean: for 1/2 hourly and daily periods calculate mean of values across all operational combustion lines for the month
A11: May | B11: 400 | C11: 145.62 | D11: 304.7 | E11: 180 | F11: 145.65 | G11: 166.995 | K11: May | L11: 133.6 | M11: 293.23 | N11: 133.65 | O11: 158.38
A12: Jun | B12: 400 | C12: 142.83 | D12: 202.835 | E12: 180 | F12: 142.825 | G12: 156.505 | K12: Jun | L12: 136.65 | M12: 193.09 | N12: 136.63 | O12: 147.15
A13: Jul | B13: 400 | C13: 142.715 | D13: 289.82 | E13: 180 | F13: 142.855 | G13: 162.425 | K13: Jul | L13: 142.19 | M13: 208.55 | N13: 142.32 | O13: 163.63 | Q13: Maximum: for 1/2 hourly and daily periods use the highest value across all operational combustion lines for the month
A14: Aug | B14: 400 | C14: 147.72 | D14: 322.835 | E14: 180 | F14: 147.615 | G14: 168.52 | K14: Aug | L14: 146.31 | M14: 294.52 | N14: 146.02 | O14: 161.84
A15: Sep | B15: 400 | C15: 145.85 | D15: 237.25 | E15: 180 | F15: 145.97 | G15: 161.16 | K15: Sep | L15: 147.64 | M15: 204.88 | N15: 147.87 | O15: 161.88
A16: Oct | B16: 400 | C16: 143.08 | D16: 250.31 | E16: 180 | F16: 143.425 | G16: 161.17 | K16: Oct | L16: 145.36 | M16: 232.31 | N16: 145.53 | O16: 158.98
A17: Nov | B17: 400 | C17: 137.155 | D17: 242.94 | E17: 180 | F17: 137 | G17: 153.48 | K17: Nov | L17: 143.22 | M17: 208.06 | N17: 142.95 | O17: 157.88
A18: Dec | B18: 400 | C18: 129.265 | D18: 242.825 | E18: 180 | F18: 129.275 | G18: 156.635 | K18: Dec | L18: 128.67 | M18: 202.51 | N18: 128.65 | O18: 144.66
K19: Annual | L19: =AVERAGE(L7:L18) -> 140.4358333 | M19: =MAX(M7:M18) -> 318.65 | N19: =AVERAGE(N7:N18) -> 140.6016667 | O19: =MAX(O7:O18) -> 169.71
J21: =+A5 -> 2024 | K21: mg/Nm3 | L21: Monthly mean of half-hourly averages | M21: Highest half- hourly average | N21: Monthly mean of daily averages | O21: Highest daily average
J22: A2 | K22: Jan | L22: 156.69 | M22: 337.75 | N22: 156.71 | O22: 168.34
K23: Feb | L23: 141.8 | M23: 288.28 | N23: 141.77 | O23: 166.37
K24: Mar | L24: 146.28 | M24: 259.02 | N24: 146.31 | O24: 170.37
K25: Apr | L25: 153.71 | M25: 251.52 | N25: 153.6 | O25: 166.9
K26: May | L26: 157.64 | M26: 316.17 | N26: 157.65 | O26: 175.61
K27: Jun | L27: 149.01 | M27: 212.58 | N27: 149.02 | O27: 165.86
K28: Jul | L28: 143.24 | M28: 371.09 | N28: 143.39 | O28: 161.22
K29: Aug | L29: 149.13 | M29: 351.15 | N29: 149.21 | O29: 175.2
K30: Sep | L30: 144.06 | M30: 269.62 | N30: 144.07 | O30: 160.44
K31: Oct | L31: 140.8 | M31: 268.31 | N31: 141.32 | O31: 163.36
K32: Nov | L32: 131.09 | M32: 277.82 | N32: 131.05 | O32: 149.08
K33: Dec | L33: 129.86 | M33: 283.14 | N33: 129.9 | O33: 168.61
K34: Annual | L34: =AVERAGE(L22:L33) -> 145.2758333 | M34: =MAX(M22:M33) -> 371.09 | N34: =AVERAGE(N22:N33) -> 145.3333333 | O34: =MAX(O22:O33) -> 175.61
J36: =+A5 -> 2024 | K36: mg/Nm3 | L36: Monthly mean of half-hourly averages | M36: Highest half- hourly average | N36: Monthly mean of daily averages | O36: Highest daily average
J37: A3 | K37: Jan
K38: Feb
K39: Mar
K40: Apr
K41: May
K42: Jun
K43: Jul
K44: Aug
K45: Sep
K46: Oct
K47: Nov
A48: Comments : | K48: Dec
K49: Annual | L49: =AVERAGE(L37:L48) -> #DIV/0! | M49: =MAX(M37:M48) -> 0 | N49: =AVERAGE(N37:N48) -> #DIV/0! | O49: =MAX(O37:O48) -> 0
J51: =+A5 -> 2024 | K51: mg/Nm3 | L51: Monthly mean of half-hourly averages | M51: Highest half- hourly average | N51: Monthly mean of daily averages | O51: Highest daily average
J52: A4 | K52: Jan
K53: Feb
K54: Mar
K55: Apr
K56: May
K57: Jun
K58: Jul
K59: Aug
K60: Sep
K61: Oct
K62: Nov
K63: Dec
K64: Annual | L64: =AVERAGE(L52:L63) -> #DIV/0! | M64: =MAX(M52:M63) -> 0 | N64: =AVERAGE(N52:N63) -> #DIV/0! | O64: =MAX(O52:O63) -> 0
J66: =+A5 -> 2024 | K66: mg/Nm3 | L66: Monthly mean of half-hourly averages | M66: Highest half- hourly average | N66: Monthly mean of daily averages | O66: Highest daily average
J67: A5 | K67: Jan
K68: Feb
K69: Mar
K70: Apr
K71: May
K72: Jun
K73: Jul
K74: Aug
K75: Sep
K76: Oct
K77: Nov
K78: Dec
K79: Annual | L79: =AVERAGE(L67:L78) -> #DIV/0! | M79: =MAX(M67:M78) -> 0 | N79: =AVERAGE(N67:N78) -> #DIV/0! | O79: =MAX(O67:O78) -> 0

Sheet TOC
A1: =+'Cover Page'!$B$29 -> Annual Performance Report 2024 | E1: =+'Cover Page'!$B$33 -> Integra SouthWest Energy Recovery Facility
A3: Monitoring of Total organic carbon emissions | D3: Whole Installation | G3: See Notes in Cell Q3 | J3: =+A3 -> Monitoring of Total organic carbon emissions | N3: Per Combustion Line | Q3: Notes:
Q4: User to add logic to complete Whole installation, Table A5:G18. From the data in Per Combustion Line, Table J6:O79, subject to No. of lines installed
A5: =+'Cover Page'!C39 -> 2024 | B5: 1/2 Hourly Reference Periods | E5: Daily Reference Periods
A6: mg/Nm3 | B6: 1/2 hourly TOC ELV | C6: Monthly mean of half-hourly averages | D6: Highest half- hourly average | E6: Daily TOC ELV | F6: Monthly mean of daily averages | G6: Highest daily average | J6: =+A5 -> 2024 | K6: mg/Nm3 | L6: Monthly mean of half-hourly averages | M6: Highest half- hourly average | N6: Monthly mean of daily averages | O6: Highest daily average
A7: Jan | B7: 20 | C7: =(L7+L22)/2 -> 1.51 | D7: 8.3 | E7: 10 | F7: =(N7+N22)/2 -> 1.51 | G7: 4.015 | J7: A1 | K7: Jan | L7: 2.21 | M7: 9.72 | N7: 2.21 | O7: 4.58
A8: Feb | B8: 20 | C8: =(L8+L23)/2 -> 0.98 | D8: 7.94 | E8: 10 | F8: =(N8+N23)/2 -> 0.965 | G8: 2.01 | K8: Feb | L8: 1.46 | M8: 11.88 | N8: 1.43 | O8: 2.6
A9: Mar | B9: 20 | C9: =(L9+L24)/2 -> 0.86 | D9: 6.47 | E9: 10 | F9: =(N9+N24)/2 -> 0.86 | G9: 2.155 | K9: Mar | L9: 1.05 | M9: 7.42 | N9: 1.04 | O9: 2.49 | Q9: Whole Installation table A5:G18:
A10: Apr | B10: 20 | C10: =(L10+L25)/2 -> 0.51 | D10: 6.525 | E10: 10 | F10: =(N10+N25)/2 -> 0.5 | G10: 0.84 | K10: Apr | L10: 0.36 | M10: 6.62 | N10: 0.37 | O10: 0.76 | Q10: Mean: for 1/2 hourly and daily periods calculate mean of values across all operational combustion lines for the month
A11: May | B11: 20 | C11: =(L11+L26)/2 -> 0.395 | D11: 8.145 | E11: 10 | F11: =(N11+N26)/2 -> 0.395 | G11: 1.39 | K11: May | L11: 0.62 | M11: 9.45 | N11: 0.62 | O11: 1.61
A12: Jun | B12: 20 | C12: =(L12+L27)/2 -> 0.975 | D12: 8.835 | E12: 10 | F12: =(N12+N27)/2 -> 0.975 | G12: 1.63 | K12: Jun | L12: 1.28 | M12: 9.11 | N12: 1.28 | O12: 2.12
A13: Jul | B13: 20 | C13: =(L13+L28)/2 -> 0.98 | D13: 9.6 | E13: 10 | F13: =(N13+N28)/2 -> 0.965 | G13: 1.77 | K13: Jul | L13: 0.93 | M13: 6.53 | N13: 0.91 | O13: 1.92 | Q13: Maximum: for 1/2 hourly and daily periods use the highest value across all operational combustion lines for the month
A14: Aug | B14: 20 | C14: =(L14+L29)/2 -> 1.585 | D14: 9.62 | E14: 10 | F14: =(N14+N29)/2 -> 1.595 | G14: 3.345 | K14: Aug | L14: 1.1 | M14: 9.55 | N14: 1.12 | O14: 2.79
A15: Sep | B15: 20 | C15: =(L15+L30)/2 -> 2.51 | D15: 9.545 | E15: 10 | F15: =(N15+N30)/2 -> 2.505 | G15: 4.74 | K15: Sep | L15: 2.02 | M15: 9.53 | N15: 2.01 | O15: 4.2
A16: Oct | B16: 20 | C16: =(L16+L31)/2 -> 2.225 | D16: 10.46 | E16: 10 | F16: =(N16+N31)/2 -> 2.24 | G16: 4.265 | K16: Oct | L16: 1.86 | M16: 10.04 | N16: 1.88 | O16: 4.26
A17: Nov | B17: 20 | C17: =(L17+L32)/2 -> 1.16 | D17: 6.69 | E17: 10 | F17: =(N17+N32)/2 -> 1.155 | G17: 1.91 | K17: Nov | L17: 0.81 | M17: 6.65 | N17: 0.81 | O17: 1.49
A18: Dec | B18: 20 | C18: =(L18+L33)/2 -> 1.865 | D18: 13.01 | E18: 10 | F18: =(N18+N33)/2 -> 1.835 | G18: 4.45 | K18: Dec | L18: 2.13 | M18: 9.69 | N18: 2.06 | O18: 3.6
K19: Annual | L19: =AVERAGE(L7:L18) -> 1.319166667 | M19: =MAX(M7:M18) -> 11.88 | N19: =AVERAGE(N7:N18) -> 1.311666667 | O19: =MAX(O7:O18) -> 4.58
J21: =+A5 -> 2024 | K21: mg/Nm3 | L21: Monthly mean of half-hourly averages | M21: Highest half- hourly average | N21: Monthly mean of daily averages | O21: Highest daily average
J22: A2 | K22: Jan | L22: 0.81 | M22: 6.88 | N22: 0.81 | O22: 3.45
K23: Feb | L23: 0.5 | M23: 4 | N23: 0.5 | O23: 1.42
K24: Mar | L24: 0.67 | M24: 5.52 | N24: 0.68 | O24: 1.82
K25: Apr | L25: 0.66 | M25: 6.43 | N25: 0.63 | O25: 0.92
K26: May | L26: 0.17 | M26: 6.84 | N26: 0.17 | O26: 1.17
K27: Jun | L27: 0.67 | M27: 8.56 | N27: 0.67 | O27: 1.14
K28: Jul | L28: 1.03 | M28: 12.67 | N28: 1.02 | O28: 1.62
K29: Aug | L29: 2.07 | M29: 9.69 | N29: 2.07 | O29: 3.9
K30: Sep | L30: 3 | M30: 9.56 | N30: 3 | O30: 5.28
K31: Oct | L31: 2.59 | M31: 10.88 | N31: 2.6 | O31: 4.27
K32: Nov | L32: 1.51 | M32: 6.73 | N32: 1.5 | O32: 2.33
K33: Dec | L33: 1.6 | M33: 16.33 | N33: 1.61 | O33: 5.3
K34: Annual | L34: =AVERAGE(L22:L33) -> 1.273333333 | M34: =MAX(M22:M33) -> 16.33 | N34: =AVERAGE(N22:N33) -> 1.271666667 | O34: =MAX(O22:O33) -> 5.3
J36: =+A5 -> 2024 | K36: mg/Nm3 | L36: Monthly mean of half-hourly averages | M36: Highest half- hourly average | N36: Monthly mean of daily averages | O36: Highest daily average
J37: A3 | K37: Jan
K38: Feb
K39: Mar
K40: Apr
K41: May
K42: Jun
K43: Jul
K44: Aug
K45: Sep
K46: Oct
K47: Nov
A48: Comments : | K48: Dec
K49: Annual | L49: =AVERAGE(L37:L48) -> #DIV/0! | M49: =MAX(M37:M48) -> 0 | N49: =AVERAGE(N37:N48) -> #DIV/0! | O49: =MAX(O37:O48) -> 0
J51: =+A5 -> 2024 | K51: mg/Nm3 | L51: Monthly mean of half-hourly averages | M51: Highest half- hourly average | N51: Monthly mean of daily averages | O51: Highest daily average
J52: A4 | K52: Jan
K53: Feb
K54: Mar
K55: Apr
K56: May
K57: Jun
K58: Jul
K59: Aug
K60: Sep
K61: Oct
K62: Nov
K63: Dec
K64: Annual | L64: =AVERAGE(L52:L63) -> #DIV/0! | M64: =MAX(M52:M63) -> 0 | N64: =AVERAGE(N52:N63) -> #DIV/0! | O64: =MAX(O52:O63) -> 0
J66: =+A5 -> 2024 | K66: mg/Nm3 | L66: Monthly mean of half-hourly averages | M66: Highest half- hourly average | N66: Monthly mean of daily averages | O66: Highest daily average
J67: A5 | K67: Jan
K68: Feb
K69: Mar
K70: Apr
K71: May
K72: Jun
K73: Jul
K74: Aug
K75: Sep
K76: Oct
K77: Nov
K78: Dec
K79: Annual | L79: =AVERAGE(L67:L78) -> #DIV/0! | M79: =MAX(M67:M78) -> 0 | N79: =AVERAGE(N67:N78) -> #DIV/0! | O79: =MAX(O67:O78) -> 0

Sheet Particulates
A1: =+'Cover Page'!$B$29 -> Annual Performance Report 2024 | E1: =+'Cover Page'!$B$33 -> Integra SouthWest Energy Recovery Facility
A3: Monitoring of Particulate matter emissions | D3: Whole Installation | G3: See Notes in Cell Q3 | J3: =+A3 -> Monitoring of Particulate matter emissions | N3: Per Combustion Line | Q3: Notes:
A5: =+'Cover Page'!C39 -> 2024 | B5: 1/2 Hourly Reference Periods | E5: Daily Reference Periods | Q5: User to add logic to complete Whole installation, Table A5:G18. From the data in Per Combustion Line, Table J6:O79, subject to No. of lines installed
A6: mg/Nm3 | B6: 1/2 hourly PM ELV | C6: Monthly mean of half-hourly averages | D6: Highest half- hourly average | E6: Daily PM ELV | F6: Monthly mean of daily averages | G6: Highest daily average | J6: =+A5 -> 2024 | K6: mg/Nm3 | L6: Monthly mean of half-hourly averages | M6: Highest half- hourly average | N6: Monthly mean of daily averages | O6: Highest daily average
A7: Jan | B7: 30 | C7: =(L7+L22)/2 -> 0.595 | D7: 0.87 | E7: 5 | F7: =(N7+N22)/2 -> 0.595 | G7: 0.685 | J7: A1 | K7: Jan | L7: 0.8 | M7: 1.06 | N7: 0.8 | O7: 0.93
A8: Feb | B8: 30 | C8: =(L8+L23)/2 -> 0.59 | D8: 1.96 | E8: 5 | F8: =(N8+N23)/2 -> 0.59 | G8: 0.725 | K8: Feb | L8: 0.74 | M8: 0.96 | N8: 0.74 | O8: 0.84
A9: Mar | B9: 30 | C9: =(L9+L24)/2 -> 0.65 | D9: 1.245 | E9: 5 | F9: =(N9+N24)/2 -> 0.65 | G9: 0.74 | K9: Mar | L9: 0.78 | M9: 0.99 | N9: 0.78 | O9: 0.88
A10: Apr | B10: 30 | C10: =(L10+L25)/2 -> 0.875 | D10: 1.845 | E10: 5 | F10: =(N10+N25)/2 -> 0.855 | G10: 1.31 | K10: Apr | L10: 1.17 | M10: 2.22 | N10: 1.15 | O10: 1.76 | Q10: Whole Installation table A5:G18:
A11: May | B11: 30 | C11: =(L11+L26)/2 -> 1.11 | D11: 2.27 | E11: 5 | F11: =(N11+N26)/2 -> 1.11 | G11: 1.33 | K11: May | L11: 1.16 | M11: 2.02 | N11: 1.16 | O11: 1.24 | Q11: Mean: for 1/2 hourly and daily periods calculate mean of values across all operational combustion lines for the month
A12: Jun | B12: 30 | C12: =(L12+L27)/2 -> 1.08 | D12: 1.895 | E12: 5 | F12: =(N12+N27)/2 -> 1.08 | G12: 1.245 | K12: Jun | L12: 1.14 | M12: 1.41 | N12: 1.14 | O12: 1.23
A13: Jul | B13: 30 | C13: =(L13+L28)/2 -> 1.185 | D13: 2.9 | E13: 5 | F13: =(N13+N28)/2 -> 1.185 | G13: 1.425 | K13: Jul | L13: 1.22 | M13: 1.89 | N13: 1.22 | O13: 1.32
A14: Aug | B14: 30 | C14: =(L14+L29)/2 -> 1.31 | D14: 3.33 | E14: 5 | F14: =(N14+N29)/2 -> 1.31 | G14: 1.635 | K14: Aug | L14: 1.25 | M14: 3.95 | N14: 1.25 | O14: 1.74 | Q14: Maximum: for 1/2 hourly and daily periods use the highest value across all operational combustion lines for the month
A15: Sep | B15: 30 | C15: =(L15+L30)/2 -> 1.545 | D15: 5.19 | E15: 5 | F15: =(N15+N30)/2 -> 1.545 | G15: 1.995 | K15: Sep | L15: 1.72 | M15: 5.79 | N15: 1.72 | O15: 2.37
A16: Oct | B16: 30 | C16: =(L16+L31)/2 -> 1.48 | D16: 2.825 | E16: 5 | F16: =(N16+N31)/2 -> 1.485 | G16: 1.67 | K16: Oct | L16: 1.79 | M16: 3.14 | N16: 1.8 | O16: 2.03
A17: Nov | B17: 30 | C17: =(L17+L32)/2 -> 1.535 | D17: 2.595 | E17: 5 | F17: =(N17+N32)/2 -> 1.53 | G17: 1.83 | K17: Nov | L17: 1.74 | M17: 2.67 | N17: 1.73 | O17: 2.09
A18: Dec | B18: 30 | C18: =(L18+L33)/2 -> 1.525 | D18: 4.145 | E18: 5 | F18: =(N18+N33)/2 -> 1.53 | G18: 2.12 | K18: Dec | L18: 1.5 | M18: 2.4 | N18: 1.52 | O18: 1.78
K19: Annual | L19: =AVERAGE(L7:L18) -> 1.250833333 | M19: =MAX(M7:M18) -> 5.79 | N19: =AVERAGE(N7:N18) -> 1.250833333 | O19: =MAX(O7:O18) -> 2.37
J21: =+A5 -> 2024 | K21: mg/Nm3 | L21: Monthly mean of half-hourly averages | M21: Highest half- hourly average | N21: Monthly mean of daily averages | O21: Highest daily average
J22: A2 | K22: Jan | L22: 0.39 | M22: 0.68 | N22: 0.39 | O22: 0.44
K23: Feb | L23: 0.44 | M23: 2.96 | N23: 0.44 | O23: 0.61
K24: Mar | L24: 0.52 | M24: 1.5 | N24: 0.52 | O24: 0.6
K25: Apr | L25: 0.58 | M25: 1.47 | N25: 0.56 | O25: 0.86
K26: May | L26: 1.06 | M26: 2.52 | N26: 1.06 | O26: 1.42
K27: Jun | L27: 1.02 | M27: 2.38 | N27: 1.02 | O27: 1.26
K28: Jul | L28: 1.15 | M28: 3.91 | N28: 1.15 | O28: 1.53
K29: Aug | L29: 1.37 | M29: 2.71 | N29: 1.37 | O29: 1.53
K30: Sep | L30: 1.37 | M30: 4.59 | N30: 1.37 | O30: 1.62
K31: Oct | L31: 1.17 | M31: 2.51 | N31: 1.17 | O31: 1.31
K32: Nov | L32: 1.33 | M32: 2.52 | N32: 1.33 | O32: 1.57
K33: Dec | L33: 1.55 | M33: 5.89 | N33: 1.54 | O33: 2.46
K34: Annual | L34: =AVERAGE(L22:L33) -> 0.9958333333 | M34: =MAX(M22:M33) -> 5.89 | N34: =AVERAGE(N22:N33) -> 0.9933333333 | O34: =MAX(O22:O33) -> 2.46
J36: =+A5 -> 2024 | K36: mg/Nm3 | L36: Monthly mean of half-hourly averages | M36: Highest half- hourly average | N36: Monthly mean of daily averages | O36: Highest daily average
J37: A3 | K37: Jan
K38: Feb
K39: Mar
K40: Apr
K41: May
K42: Jun
K43: Jul
K44: Aug
K45: Sep
K46: Oct
K47: Nov
A48: Comments : | K48: Dec
K49: Annual | L49: =AVERAGE(L37:L48) -> #DIV/0! | M49: =MAX(M37:M48) -> 0 | N49: =AVERAGE(N37:N48) -> #DIV/0! | O49: =MAX(O37:O48) -> 0
J51: =+A5 -> 2024 | K51: mg/Nm3 | L51: Monthly mean of half-hourly averages | M51: Highest half- hourly average | N51: Monthly mean of daily averages | O51: Highest daily average
J52: A4 | K52: Jan
K53: Feb
K54: Mar
K55: Apr
K56: May
K57: Jun
K58: Jul
K59: Aug
K60: Sep
K61: Oct
K62: Nov
K63: Dec
K64: Annual | L64: =AVERAGE(L52:L63) -> #DIV/0! | M64: =MAX(M52:M63) -> 0 | N64: =AVERAGE(N52:N63) -> #DIV/0! | O64: =MAX(O52:O63) -> 0
J66: =+A5 -> 2024 | K66: mg/Nm3 | L66: Monthly mean of half-hourly averages | M66: Highest half- hourly average | N66: Monthly mean of daily averages | O66: Highest daily average
J67: A5 | K67: Jan
K68: Feb
K69: Mar
K70: Apr
K71: May
K72: Jun
K73: Jul
K74: Aug
K75: Sep
K76: Oct
K77: Nov
K78: Dec
K79: Annual | L79: =AVERAGE(L67:L78) -> #DIV/0! | M79: =MAX(M67:M78) -> 0 | N79: =AVERAGE(N67:N78) -> #DIV/0! | O79: =MAX(O67:O78) -> 0

Sheet CO 95% 10 min
A1: =+'Cover Page'!$B$29 -> Annual Performance Report 2024 | E1: =+'Cover Page'!$B$33 -> Integra SouthWest Energy Recovery Facility
A3: Monitoring of Carbon Monoxide (10-minute avg) | E3: Whole Installation | H3: See Notes in Cell S3 | J3: =+A3 -> Monitoring of Carbon Monoxide (10-minute avg) | O3: Per Combustion Line | Q3: Notes: | S3: Notes:
A5: Please complete this tab for your plant if you have 10-minute average CO ELVs; otherwise, leave it blank and complete the CO 0.5 hourly tab
S7: User to add logic to complete Whole installation, Table A5:H18. From the data in Per Combustion Line, Table K6:Q79, subject to No. of lines installed
A8: =+'Cover Page'!C39 -> 2024 | B8: 10-minute Reference Periods | F8: Daily Reference Periods
A9: mg/Nm3 | B9: 95%ile 10-min avg CO ELV | C9: Highest daily 95%ile 10-min average | D9: Monthly mean of 10-min averages | E9: Highest 10-min average | F9: Daily CO ELV | G9: Monthly mean of daily averages | H9: Highest daily average | K9: =+A8 -> 2024 | L9: mg/Nm3 | M9: Highest daily 95%ile 10-min average | N9: Monthly mean of 10-min averages | O9: Highest 10-min average | P9: Monthly mean of daily averages | Q9: Highest daily average
A10: Jan | B10: 150 | C10: =(M10+M25)/2 -> 38.74 | D10: 10.37 | E10: 265.15 | F10: 50 | G10: =(P10+P25)/2 -> 10.385 | H10: 16.905 | K10: A1 | L10: Jan | M10: 37.1 | N10: 10.49 | O10: 257.33 | P10: 10.5 | Q10: 15.64
A11: Feb | B11: =+B10 -> 150 | C11: =(M11+M26)/2 -> 63.665 | D11: 13.125 | E11: 643.405 | F11: =+F10 -> 50 | G11: =(P11+P26)/2 -> 13.195 | H11: 25.53 | L11: Feb | M11: 57.58 | N11: 14.53 | O11: 595.38 | P11: 14.67 | Q11: 23.88
A12: Mar | B12: 150 | C12: =(M12+M27)/2 -> 71.495 | D12: 16.615 | E12: 482.68 | F12: 50 | G12: =(P12+P27)/2 -> 16.62 | H12: 24.94 | L12: Mar | M12: 72.5 | N12: 17.09 | O12: 371.31 | P12: 17.09 | Q12: 23.17 | S12: Whole Installation table A5:H18:
A13: Apr | B13: 150 | C13: =(M13+M28)/2 -> 61.1 | D13: 12.035 | E13: 596.77 | F13: 50 | G13: =(P13+P28)/2 -> 11.6 | H13: 17.615 | L13: Apr | M13: 44.48 | N13: 12.74 | O13: 380.48 | P13: 12.81 | Q13: 17.67 | S13: Mean: for 10-min and daily periods use average of all operational combustion lines.
A14: May | B14: 150 | C14: =(M14+M29)/2 -> 83.44 | D14: 13.125 | E14: 945.825 | F14: 50 | G14: =(P14+P29)/2 -> 13.13 | H14: 22.74 | L14: May | M14: 89.54 | N14: 14.18 | O14: 766.79 | P14: 14.18 | Q14: 26.69
A15: Jun | B15: 150 | C15: =(M15+M30)/2 -> 81.395 | D15: 13.76 | E15: 824.6 | F15: 50 | G15: =(P15+P30)/2 -> 13.77 | H15: 21.465 | L15: Jun | M15: 93.34 | N15: 14.9 | O15: 528.75 | P15: 14.91 | Q15: 22.17
A16: Jul | B16: 150 | C16: =(M16+M31)/2 -> 93.8 | D16: 15.105 | E16: 543.285 | F16: 50 | G16: =(P16+P31)/2 -> 14.975 | H16: 23.13 | L16: Jul | M16: 97.08 | N16: 14.98 | O16: 787.98 | P16: 14.76 | Q16: 24.05 | S16: Maximum: for 10-min and daily periods use the highest of all operational combustion lines in any month.
A17: Aug | B17: 150 | C17: =(M17+M32)/2 -> 79.19 | D17: 13.045 | E17: 399.215 | F17: 50 | G17: =(P17+P32)/2 -> 13.055 | H17: 20.13 | L17: Aug | M17: 69.96 | N17: 10.66 | O17: 280.87 | P17: 10.65 | Q17: 15.13
A18: Sep | B18: 150 | C18: =(M18+M33)/2 -> 98.165 | D18: 16.22 | E18: 464.745 | F18: 50 | G18: =(P18+P33)/2 -> 16.19 | H18: 30.865 | L18: Sep | M18: 69.94 | N18: 15.23 | O18: 449.61 | P18: 15.1 | Q18: 22.13
A19: Oct | B19: 150 | C19: =(M19+M34)/2 -> 89.39 | D19: 14.32 | E19: 1141.485 | F19: 50 | G19: =(P19+P34)/2 -> 14.33 | H19: 29.88 | L19: Oct | M19: 62.49 | N19: 12.74 | O19: 1344.25 | P19: 12.78 | Q19: 23.7
A20: Nov | B20: 150 | C20: =(M20+M35)/2 -> 80.305 | D20: 14.48 | E20: 831.985 | F20: 50 | G20: =(P20+P35)/2 -> 14.395 | H20: 20.15 | L20: Nov | M20: 68.72 | N20: 11.72 | O20: 855.32 | P20: 11.54 | Q20: 17.13
A21: Dec | B21: 150 | C21: =(M21+M36)/2 -> 82.14 | D21: 13.58 | E21: 547.745 | F21: 50 | G21: =(P21+P36)/2 -> 13.545 | H21: 22.015 | L21: Dec | M21: 75.04 | N21: 10.91 | O21: 391.62 | P21: 10.84 | Q21: 20.25
L22: Annual | M22: =AVERAGE(M10:M21) -> 69.81416667 | O22: =MAX(O10:O21) -> 1344.25 | P22: =AVERAGE(P10:P21) -> 13.31916667 | Q22: =MAX(Q10:Q21) -> 26.69
K24: =+A8 -> 2024 | L24: mg/Nm3 | M24: Highest daily 95%ile 10-min average | N24: Monthly mean of 10-min averages | O24: Highest 10-min average | P24: Monthly mean of daily averages | Q24: Highest daily average
K25: A2 | L25: Jan | M25: 40.38 | N25: 10.25 | O25: 272.97 | P25: 10.27 | Q25: 18.17
L26: Feb | M26: 69.75 | N26: 11.72 | O26: 691.43 | P26: 11.72 | Q26: 27.18
L27: Mar | M27: 70.49 | N27: 16.14 | O27: 594.05 | P27: 16.15 | Q27: 26.71
L28: Apr | M28: 77.72 | N28: 11.33 | O28: 813.06 | P28: 10.39 | Q28: 17.56
L29: May | M29: 77.34 | N29: 12.07 | O29: 1124.86 | P29: 12.08 | Q29: 18.79
L30: Jun | M30: 69.45 | N30: 12.62 | O30: 1120.45 | P30: 12.63 | Q30: 20.76
L31: Jul | M31: 90.52 | N31: 15.23 | O31: 298.59 | P31: 15.19 | Q31: 22.21
L32: Aug | M32: 88.42 | N32: 15.43 | O32: 517.56 | P32: 15.46 | Q32: 25.13
L33: Sep | M33: 126.39 | N33: 17.21 | O33: 479.88 | P33: 17.28 | Q33: 39.6
L34: Oct | M34: 116.29 | N34: 15.9 | O34: 938.72 | P34: 15.88 | Q34: 36.06
L35: Nov | M35: 91.89 | N35: 17.24 | O35: 808.65 | P35: 17.25 | Q35: 23.17
L36: Dec | M36: 89.24 | N36: 16.25 | O36: 703.87 | P36: 16.25 | Q36: 23.78
L37: Annual | M37: =AVERAGE(M25:M36) -> 83.99 | O37: =MAX(O25:O36) -> 1124.86 | P37: =AVERAGE(P25:P36) -> 14.2125 | Q37: =MAX(Q25:Q36) -> 39.6
K39: =+A8 -> 2024 | L39: mg/Nm3 | M39: Highest daily 95%ile 10-min average | N39: Monthly mean of 10-min averages | O39: Highest 10-min average | P39: Monthly mean of daily averages | Q39: Highest daily average
K40: A3 | L40: Jan
L41: Feb
L42: Mar
L43: Apr
L44: May
L45: Jun
L46: Jul
L47: Aug
L48: Sep
L49: Oct
L50: Nov
A51: Comments : | L51: Dec
A52: Environment Agency explanatory note: The 10-minute average ELV is based on the “95th percentile”. In this case this means that 95% of the 10 minute averages in the relevant 24-hour period (i.e. 137) must be below 150 mg/Nm3, and 5% (i.e. 7) are allowed to be any value above 150 mg/Nm3. Whilst we expect operators to minimise CO emissions at all times, it is perfectly acceptable for the value of the maximum 10-minute average to be above 150 mg/Nm3, provided the 95th percentile ELV has been met for that period. | L52: Annual | M52: =AVERAGE(M40:M51) -> #DIV/0! | O52: =MAX(O40:O51) -> 0 | P52: =AVERAGE(P40:P51) -> #DIV/0! | Q52: =MAX(Q40:Q51) -> 0
K54: =+A8 -> 2024 | L54: mg/Nm3 | M54: Highest daily 95%ile 10-min average | N54: Monthly mean of 10-min averages | O54: Highest 10-min average | P54: Monthly mean of daily averages | Q54: Highest daily average
K55: A4 | L55: Jan
L56: Feb
L57: Mar
L58: Apr
L59: May
L60: Jun
L61: Jul
L62: Aug
L63: Sep
L64: Oct
L65: Nov
L66: Dec
L67: Annual | M67: =AVERAGE(M55:M66) -> #DIV/0! | O67: =MAX(O55:O66) -> 0 | P67: =AVERAGE(P55:P66) -> #DIV/0! | Q67: =MAX(Q55:Q66) -> 0
K69: =+A8 -> 2024 | L69: mg/Nm3 | M69: 95%ile 10-min avg maximum | N69: Monthly CO 10-min avg mean | O69: 10-min avg maximum | P69: Monthly daily mean | Q69: Monthly daily maximum
K70: A5 | L70: Jan
L71: Feb
L72: Mar
L73: Apr
L74: May
L75: Jun
L76: Jul
L77: Aug
L78: Sep
L79: Oct
L80: Nov
L81: Dec
L82: Annual | M82: =AVERAGE(M70:M81) -> #DIV/0! | O82: =MAX(O70:O81) -> 0 | P82: =AVERAGE(P70:P81) -> #DIV/0! | Q82: =MAX(Q70:Q81) -> 0

Sheet NH3
A1: =+'Cover Page'!$B$29 -> Annual Performance Report 2024 | E1: =+'Cover Page'!$B$33 -> Integra SouthWest Energy Recovery Facility
A3: Monitoring of Ammnonia emissions | D3: Whole Installation | G3: See Notes in Cell Q3 | J3: =+A3 -> Monitoring of Ammnonia emissions | N3: Per Combustion Line | Q3: Notes:
Q4: User to add logic to complete Whole installation, Table A5:G18. From the data in Per Combustion Line, Table J6:O79, subject to No. of lines installed
A5: =+'Cover Page'!C39 -> 2024 | B5: 1/2 Hourly Reference Periods | E5: Daily Reference Periods
A6: mg/Nm3 | B6: 1/2 hourly NH3 ELV | C6: Monthly mean of half-hourly averages | D6: Highest half- hourly average | E6: Daily NH3 ELV | F6: Monthly mean of daily averages | G6: Highest daily average | J6: =+A5 -> 2024 | K6: mg/Nm3 | L6: Monthly mean of half-hourly averages | M6: Highest half- hourly average | N6: Monthly mean of daily averages | O6: Highest daily average
A7: Jan | B7: None | C7: =(L7+L22)/2 -> 3.065 | D7: 11.245 | E7: 15 | F7: =(N7+N22)/2 -> 3.07 | G7: 5.09 | J7: A1 | K7: Jan | L7: 2.14 | M7: 9.18 | N7: 2.14 | O7: 4.28
A8: Feb | B8: =+B7 -> None | C8: =(L8+L23)/2 -> 4.9 | D8: 15.385 | E8: 15 | F8: =(N8+N23)/2 -> 4.975 | G8: 8.585 | K8: Feb | L8: 5.62 | M8: 17.16 | N8: 5.77 | O8: 10.99
A9: Mar | B9: None | C9: =(L9+L24)/2 -> 6.56 | D9: 21.69 | E9: 15 | F9: =(N9+N24)/2 -> 6.585 | G9: 10.645 | K9: Mar | L9: 8.09 | M9: 21.78 | N9: 8.12 | O9: 12.52 | Q9: Whole Installation table A5:G18:
A10: Apr | B10: None | C10: =(L10+L25)/2 -> 7.1 | D10: 16.28 | E10: 15 | F10: =(N10+N25)/2 -> 7.085 | G10: 10.9 | K10: Apr | L10: 8.43 | M10: 15.79 | N10: 8.42 | O10: 11.41 | Q10: Mean: for 1/2 hourly and daily periods calculate mean of values across all operational combustion lines for the month
A11: May | B11: None | C11: =(L11+L26)/2 -> 8.46 | D11: 17.81 | E11: 15 | F11: =(N11+N26)/2 -> 8.465 | G11: 12.34 | K11: May | L11: 7.11 | M11: 16.73 | N11: 7.12 | O11: 11.17
A12: Jun | B12: None | C12: =(L12+L27)/2 -> 6.355 | D12: 15.44 | E12: 15 | F12: =(N12+N27)/2 -> 6.355 | G12: 8.835 | K12: Jun | L12: 7.05 | M12: 20.24 | N12: 7.05 | O12: 10.07
A13: Jul | B13: None | C13: =(L13+L28)/2 -> 7.19 | D13: 17.105 | E13: 15 | F13: =(N13+N28)/2 -> 7.19 | G13: 9.665 | K13: Jul | L13: 8.16 | M13: 22.36 | N13: 8.16 | O13: 11.38 | Q13: Maximum: for 1/2 hourly and daily periods use the highest value across all operational combustion lines for the month
A14: Aug | B14: None | C14: =(L14+L29)/2 -> 6.72 | D14: 13.28 | E14: 15 | F14: =(N14+N29)/2 -> 6.72 | G14: 9.435 | K14: Aug | L14: 6.21 | M14: 13.4 | N14: 6.21 | O14: 9.61
A15: Sep | B15: None | C15: =(L15+L30)/2 -> 5.085 | D15: 14.65 | E15: 15 | F15: =(N15+N30)/2 -> 5.075 | G15: 7.015 | K15: Sep | L15: 5.83 | M15: 12.98 | N15: 5.81 | O15: 7.25
A16: Oct | B16: None | C16: =(L16+L31)/2 -> 5.515 | D16: 15.585 | E16: 15 | F16: =(N16+N31)/2 -> 5.545 | G16: 8.275 | K16: Oct | L16: 6.69 | M16: 13.16 | N16: 6.72 | O16: 9.49
A17: Nov | B17: None | C17: =(L17+L32)/2 -> 5.11 | D17: 14.84 | E17: 15 | F17: =(N17+N32)/2 -> 5.165 | G17: 8.63 | K17: Nov | L17: 6 | M17: 15.16 | N17: 6.1 | O17: 8.96
A18: Dec | B18: None | C18: =(L18+L33)/2 -> 4.015 | D18: 13.47 | E18: 15 | F18: =(N18+N33)/2 -> 4.01 | G18: 7.275 | K18: Dec | L18: 4.85 | M18: 12.36 | N18: 4.83 | O18: 7.96
K19: Annual | L19: =AVERAGE(L7:L18) -> 6.348333333 | M19: =MAX(M7:M18) -> 22.36 | N19: =AVERAGE(N7:N18) -> 6.370833333 | O19: =MAX(O7:O18) -> 12.52
J21: =+A5 -> 2024 | K21: mg/Nm3 | L21: Monthly mean of half-hourly averages | M21: Highest half- hourly average | N21: Monthly mean of daily averages | O21: Highest daily average
J22: A2 | K22: Jan | L22: 3.99 | M22: 13.31 | N22: 4 | O22: 5.9
K23: Feb | L23: 4.18 | M23: 13.61 | N23: 4.18 | O23: 6.18
K24: Mar | L24: 5.03 | M24: 21.6 | N24: 5.05 | O24: 8.77
K25: Apr | L25: 5.77 | M25: 16.77 | N25: 5.75 | O25: 10.39
K26: May | L26: 9.81 | M26: 18.89 | N26: 9.81 | O26: 13.51
K27: Jun | L27: 5.66 | M27: 10.64 | N27: 5.66 | O27: 7.6
K28: Jul | L28: 6.22 | M28: 11.85 | N28: 6.22 | O28: 7.95
K29: Aug | L29: 7.23 | M29: 13.16 | N29: 7.23 | O29: 9.26
K30: Sep | L30: 4.34 | M30: 16.32 | N30: 4.34 | O30: 6.78
K31: Oct | L31: 4.34 | M31: 18.01 | N31: 4.37 | O31: 7.06
K32: Nov | L32: 4.22 | M32: 14.52 | N32: 4.23 | O32: 8.3
K33: Dec | L33: 3.18 | M33: 14.58 | N33: 3.19 | O33: 6.59
K34: Annual | L34: =AVERAGE(L22:L33) -> 5.330833333 | M34: =MAX(M22:M33) -> 21.6 | N34: =AVERAGE(N22:N33) -> 5.335833333 | O34: =MAX(O22:O33) -> 13.51
J36: =+A5 -> 2024 | K36: mg/Nm3 | L36: Monthly mean of half-hourly averages | M36: Highest half- hourly average | N36: Monthly mean of daily averages | O36: Highest daily average
J37: A3 | K37: Jan
K38: Feb
K39: Mar
K40: Apr
K41: May
K42: Jun
K43: Jul
K44: Aug
K45: Sep
K46: Oct
K47: Nov
A48: Comments : | K48: Dec
A49: An indicated ELV value of zero in the table above means that no ammonia limit is/was set in the permit. | K49: Annual | L49: =AVERAGE(L37:L48) -> #DIV/0! | M49: =MAX(M37:M48) -> 0 | N49: =AVERAGE(N37:N48) -> #DIV/0! | O49: =MAX(O37:O48) -> 0
J51: =+A5 -> 2024 | K51: mg/Nm3 | L51: Monthly mean of half-hourly averages | M51: Highest half- hourly average | N51: Monthly mean of daily averages | O51: Highest daily average
J52: A4 | K52: Jan
K53: Feb
K54: Mar
K55: Apr
K56: May
K57: Jun
K58: Jul
K59: Aug
K60: Sep
K61: Oct
K62: Nov
K63: Dec
K64: Annual | L64: =AVERAGE(L52:L63) -> #DIV/0! | M64: =MAX(M52:M63) -> 0 | N64: =AVERAGE(N52:N63) -> #DIV/0! | O64: =MAX(O52:O63) -> 0
J66: =+A5 -> 2024 | K66: mg/Nm3 | L66: Monthly mean of half-hourly averages | M66: Highest half- hourly average | N66: Monthly mean of daily averages | O66: Highest daily average
J67: A5 | K67: Jan
K68: Feb
K69: Mar
K70: Apr
K71: May
K72: Jun
K73: Jul
K74: Aug
K75: Sep
K76: Oct
K77: Nov
K78: Dec
K79: Annual | L79: =AVERAGE(L67:L78) -> #DIV/0! | M79: =MAX(M67:M78) -> 0 | N79: =AVERAGE(N67:N78) -> #DIV/0! | O79: =MAX(O67:O78) -> 0

Sheet Template changes log
A1: Log of changes to template (Environment Agency use only)
A3: Date | B3: Description of change | C3: New version number and date
A4: 2024-01-16 | B4: Air (periodic) tab: corrected default O2 reference from 6 to 11% | C4: Version 23.5a (for incinerators) - 16/01/2024
A5: 2024-09-23 | B5: Air (periodic) tab: corrected symbol for Thallium to Tl
A6: 2024-09-23 | B6: Air (periodic) tab: removed last year's references to different emission limit values applying from 03/12/23 and updated all relevant ELVs
A7: 2024-09-23 | B7: Tabs for continuously monitored pollutants (HCl, SO2 etc.): changed terminology in table headings to improve clarity
A8: 2024-09-23 | B8: Tabs for continuously monitored pollutants (HCl, SO2 etc.): removed last year's references to different emission limit values applying from 03/12/23 and updated all relevant ELVs
A9: 2024-09-23 | B9: Perf 1 tab: updated formula for water usage to report m3 rather than litres and corrected error with formula copying operator name
A10: 2024-09-23 | B10: Operational Summary tab: table added on start-ups and shut-downs
A11: 2024-09-23 | B11: Operational Summary tab: table added on dioxins and mercury protocols
A12: 2024-09-23 | B12: Operational Summary tab: table added on AST, QAL 2 and calibration functions
A13: 2024-09-23 | B13: CO2 N2O tab: various changes made to notes to reflect the fact that most plants should now have calibrated CEMS and flow meters + some have C14 samplers and more up to date industry data | C13: Version 24a (for incinerators) - 23/09/24
A14: 2024-11-08 | B14: CO2 N2O tab: Changed the N2O CO2 equivalence factor from 298 to 265 in line with recently updated government greenhouse gas figures: https://www.gov.uk/government/publications/greenhouse-gas-reporting-conversion-factors-2024
A15: 2024-11-08 | B15: CO2 N2O tab: Added an additional requirement for municipal EfW plants to state the yearly average biogenic percentage of the waste by mass, and reference to a document which sets out a methodology for calculating NCV of waste from the results of C14 sampling.
A16: 2024-11-08 | B16: Permit Compliance tab: Two additional columns added + explanatory notes to the table entitled "Summary of non-compliances under the permit" to allow CCS scores to be stated where relevant.
A17: 2024-11-08 | B17: Residue Quality tab: Note added explaining application of TOC and LOI limits and asking operators to report both metrics where measured. | C17: Version 24.1a (for incinerators) - 08/11/24
A18: 2024-11-27 | B18: Operational Summary tab: Tables on mercury & dioxins protocols and ASTs removed (covered instead by new tables added to updated Air 9 periodic monitoring form) | C18: Version 24.2a (for incinerators) - 27/11/24
